Workbook

Sheet כנסת ה-20
B1: הכנסת ה-20 | תשע"ה | /2015
I2: =IF(NOT(SUM(קולות58[מנדטים הסכם עודפים])=120),"נדרש הטלת מטבע","") -> 
B3: מפלגה | C3: קולות | D3: אחוז | E3: קולות כשרים | F3: מנדטים בסיסי | G3: קולות עודפים | H3: מנדטים באדר עופר | I3: מנדטים הסכם עודפים | K3: סך הקולות | L3: סך הקולות הכשרים
B4: יהדות התורה | C4: 210143 | D4: =IF(ISBLANK(קולות58[[#This Row],[קולות]]),,(קולות58[[#This Row],[קולות]]/סך_הקולות)) -> 0.04844912672 | E4: =IF(קולות58[[#This Row],[אחוז]]>=אחוז_החסימה,קולות58[[#This Row],[קולות]],) -> 210143 | F4: =IF(ISBLANK(קולות58[[#This Row],[קולות]]),,INT(קולות58[[#This Row],[קולות כשרים]]/מדד_למנדט)) -> 5 | G4: =IF(ISBLANK(קולות58[[#This Row],[קולות]]),,MOD(קולות58[[#This Row],[קולות כשרים]],מדד_למנדט)) -> 34633.125 | H4: =IF(ISBLANK(קולות58[[#This Row],[קולות]]),,BaderOfer(קולות58[מפלגה],קולות58[קולות כשרים],קולות58[מנדטים בסיסי],(120- SUM(קולות58[מנדטים בסיסי])),MATCH(קולות58[[#This Row],[מפלגה]],קולות58[מפלגה],0))) -> 6 | I4: =IF(ISBLANK(קולות58[[#This Row],[קולות]]),,BaderOfer_Odafim(קולות58[מפלגה],קולות58[קולות כשרים],קולות58[מנדטים בסיסי],הסכמי_עודפים69[[#All],[עמודה1]],הסכמי_עודפים69[[#All],[עמודה2]],(120- SUM(קולות58[מנדטים בסיסי])),MATCH(קולות58[[#This Row],[מפלגה]],קולות58[מפלגה],0))) -> 6 | K4: =SUM(קולות58[קולות]) -> 4337395 | L4: =SUM(קולות58[קולות כשרים]) -> 4212237
B5: הליכוד | C5: 985408 | D5: =IF(ISBLANK(קולות58[[#This Row],[קולות]]),,(קולות58[[#This Row],[קולות]]/סך_הקולות)) -> 0.2271889003 | E5: =IF(קולות58[[#This Row],[אחוז]]>=אחוז_החסימה,קולות58[[#This Row],[קולות]],) -> 985408 | F5: =IF(ISBLANK(קולות58[[#This Row],[קולות]]),,INT(קולות58[[#This Row],[קולות כשרים]]/מדד_למנדט)) -> 28 | G5: =IF(ISBLANK(קולות58[[#This Row],[קולות]]),,MOD(קולות58[[#This Row],[קולות כשרים]],מדד_למנדט)) -> 2552.7 | H5: =IF(ISBLANK(קולות58[[#This Row],[קולות]]),,BaderOfer(קולות58[מפלגה],קולות58[קולות כשרים],קולות58[מנדטים בסיסי],(120- SUM(קולות58[מנדטים בסיסי])),MATCH(קולות58[[#This Row],[מפלגה]],קולות58[מפלגה],0))) -> 29 | I5: =IF(ISBLANK(קולות58[[#This Row],[קולות]]),,BaderOfer_Odafim(קולות58[מפלגה],קולות58[קולות כשרים],קולות58[מנדטים בסיסי],הסכמי_עודפים69[[#All],[עמודה1]],הסכמי_עודפים69[[#All],[עמודה2]],(120- SUM(קולות58[מנדטים בסיסי])),MATCH(קולות58[[#This Row],[מפלגה]],קולות58[מפלגה],0))) -> 29 | K5: אחוז החסימה | L5: מדד למנדט
B6: המחנה הציוני | C6: 786313 | D6: =IF(ISBLANK(קולות58[[#This Row],[קולות]]),,(קולות58[[#This Row],[קולות]]/סך_הקולות)) -> 0.1812869245 | E6: =IF(קולות58[[#This Row],[אחוז]]>=אחוז_החסימה,קולות58[[#This Row],[קולות]],) -> 786313 | F6: =IF(ISBLANK(קולות58[[#This Row],[קולות]]),,INT(קולות58[[#This Row],[קולות כשרים]]/מדד_למנדט)) -> 22 | G6: =IF(ISBLANK(קולות58[[#This Row],[קולות]]),,MOD(קולות58[[#This Row],[קולות כשרים]],מדד_למנדט)) -> 14069.55 | H6: =IF(ISBLANK(קולות58[[#This Row],[קולות]]),,BaderOfer(קולות58[מפלגה],קולות58[קולות כשרים],קולות58[מנדטים בסיסי],(120- SUM(קולות58[מנדטים בסיסי])),MATCH(קולות58[[#This Row],[מפלגה]],קולות58[מפלגה],0))) -> 23 | I6: =IF(ISBLANK(קולות58[[#This Row],[קולות]]),,BaderOfer_Odafim(קולות58[מפלגה],קולות58[קולות כשרים],קולות58[מנדטים בסיסי],הסכמי_עודפים69[[#All],[עמודה1]],הסכמי_עודפים69[[#All],[עמודה2]],(120- SUM(קולות58[מנדטים בסיסי])),MATCH(קולות58[[#This Row],[מפלגה]],קולות58[מפלגה],0))) -> 23 | K6: 0.0325 | L6: =סך_קולות_כשרים/120 -> 35101.975
B7: ש"ס | C7: 241613 | D7: =IF(ISBLANK(קולות58[[#This Row],[קולות]]),,(קולות58[[#This Row],[קולות]]/סך_הקולות)) -> 0.05570463377 | E7: =IF(קולות58[[#This Row],[אחוז]]>=אחוז_החסימה,קולות58[[#This Row],[קולות]],) -> 241613 | F7: =IF(ISBLANK(קולות58[[#This Row],[קולות]]),,INT(קולות58[[#This Row],[קולות כשרים]]/מדד_למנדט)) -> 6 | G7: =IF(ISBLANK(קולות58[[#This Row],[קולות]]),,MOD(קולות58[[#This Row],[קולות כשרים]],מדד_למנדט)) -> 31001.15 | H7: =IF(ISBLANK(קולות58[[#This Row],[קולות]]),,BaderOfer(קולות58[מפלגה],קולות58[קולות כשרים],קולות58[מנדטים בסיסי],(120- SUM(קולות58[מנדטים בסיסי])),MATCH(קולות58[[#This Row],[מפלגה]],קולות58[מפלגה],0))) -> 7 | I7: =IF(ISBLANK(קולות58[[#This Row],[קולות]]),,BaderOfer_Odafim(קולות58[מפלגה],קולות58[קולות כשרים],קולות58[מנדטים בסיסי],הסכמי_עודפים69[[#All],[עמודה1]],הסכמי_עודפים69[[#All],[עמודה2]],(120- SUM(קולות58[מנדטים בסיסי])),MATCH(קולות58[[#This Row],[מפלגה]],קולות58[מפלגה],0))) -> 7
B8: יש עתיד | C8: 371602 | D8: =IF(ISBLANK(קולות58[[#This Row],[קולות]]),,(קולות58[[#This Row],[קולות]]/סך_הקולות)) -> 0.08567400479 | E8: =IF(קולות58[[#This Row],[אחוז]]>=אחוז_החסימה,קולות58[[#This Row],[קולות]],) -> 371602 | F8: =IF(ISBLANK(קולות58[[#This Row],[קולות]]),,INT(קולות58[[#This Row],[קולות כשרים]]/מדד_למנדט)) -> 10 | G8: =IF(ISBLANK(קולות58[[#This Row],[קולות]]),,MOD(קולות58[[#This Row],[קולות כשרים]],מדד_למנדט)) -> 20582.25 | H8: =IF(ISBLANK(קולות58[[#This Row],[קולות]]),,BaderOfer(קולות58[מפלגה],קולות58[קולות כשרים],קולות58[מנדטים בסיסי],(120- SUM(קולות58[מנדטים בסיסי])),MATCH(קולות58[[#This Row],[מפלגה]],קולות58[מפלגה],0))) -> 10 | I8: =IF(ISBLANK(קולות58[[#This Row],[קולות]]),,BaderOfer_Odafim(קולות58[מפלגה],קולות58[קולות כשרים],קולות58[מנדטים בסיסי],הסכמי_עודפים69[[#All],[עמודה1]],הסכמי_עודפים69[[#All],[עמודה2]],(120- SUM(קולות58[מנדטים בסיסי])),MATCH(קולות58[[#This Row],[מפלגה]],קולות58[מפלגה],0))) -> 10 | K8: הסכמי עודפים
B9: ישראל ביתנו | C9: 214906 | D9: =IF(ISBLANK(קולות58[[#This Row],[קולות]]),,(קולות58[[#This Row],[קולות]]/סך_הקולות)) -> 0.04954725129 | E9: =IF(קולות58[[#This Row],[אחוז]]>=אחוז_החסימה,קולות58[[#This Row],[קולות]],) -> 214906 | F9: =IF(ISBLANK(קולות58[[#This Row],[קולות]]),,INT(קולות58[[#This Row],[קולות כשרים]]/מדד_למנדט)) -> 6 | G9: =IF(ISBLANK(קולות58[[#This Row],[קולות]]),,MOD(קולות58[[#This Row],[קולות כשרים]],מדד_למנדט)) -> 4294.15 | H9: =IF(ISBLANK(קולות58[[#This Row],[קולות]]),,BaderOfer(קולות58[מפלגה],קולות58[קולות כשרים],קולות58[מנדטים בסיסי],(120- SUM(קולות58[מנדטים בסיסי])),MATCH(קולות58[[#This Row],[מפלגה]],קולות58[מפלגה],0))) -> 6 | I9: =IF(ISBLANK(קולות58[[#This Row],[קולות]]),,BaderOfer_Odafim(קולות58[מפלגה],קולות58[קולות כשרים],קולות58[מנדטים בסיסי],הסכמי_עודפים69[[#All],[עמודה1]],הסכמי_עודפים69[[#All],[עמודה2]],(120- SUM(קולות58[מנדטים בסיסי])),MATCH(קולות58[[#This Row],[מפלגה]],קולות58[מפלגה],0))) -> 6 | K9: יהדות התורה | L9: ש"ס
B10: מרצ | C10: 165529 | D10: =IF(ISBLANK(קולות58[[#This Row],[קולות]]),,(קולות58[[#This Row],[קולות]]/סך_הקולות)) -> 0.03816322931 | E10: =IF(קולות58[[#This Row],[אחוז]]>=אחוז_החסימה,קולות58[[#This Row],[קולות]],) -> 165529 | F10: =IF(ISBLANK(קולות58[[#This Row],[קולות]]),,INT(קולות58[[#This Row],[קולות כשרים]]/מדד_למנדט)) -> 4 | G10: =IF(ISBLANK(קולות58[[#This Row],[קולות]]),,MOD(קולות58[[#This Row],[קולות כשרים]],מדד_למנדט)) -> 25121.1 | H10: =IF(ISBLANK(קולות58[[#This Row],[קולות]]),,BaderOfer(קולות58[מפלגה],קולות58[קולות כשרים],קולות58[מנדטים בסיסי],(120- SUM(קולות58[מנדטים בסיסי])),MATCH(קולות58[[#This Row],[מפלגה]],קולות58[מפלגה],0))) -> 4 | I10: =IF(ISBLANK(קולות58[[#This Row],[קולות]]),,BaderOfer_Odafim(קולות58[מפלגה],קולות58[קולות כשרים],קולות58[מנדטים בסיסי],הסכמי_עודפים69[[#All],[עמודה1]],הסכמי_עודפים69[[#All],[עמודה2]],(120- SUM(קולות58[מנדטים בסיסי])),MATCH(קולות58[[#This Row],[מפלגה]],קולות58[מפלגה],0))) -> 4 | K10: כולנו | L10: ישראל ביתנו
B11: כולנו | C11: 315360 | D11: =IF(ISBLANK(קולות58[[#This Row],[קולות]]),,(קולות58[[#This Row],[קולות]]/סך_הקולות)) -> 0.07270723556 | E11: =IF(קולות58[[#This Row],[אחוז]]>=אחוז_החסימה,קולות58[[#This Row],[קולות]],) -> 315360 | F11: =IF(ISBLANK(קולות58[[#This Row],[קולות]]),,INT(קולות58[[#This Row],[קולות כשרים]]/מדד_למנדט)) -> 8 | G11: =IF(ISBLANK(קולות58[[#This Row],[קולות]]),,MOD(קולות58[[#This Row],[קולות כשרים]],מדד_למנדט)) -> 34544.2 | H11: =IF(ISBLANK(קולות58[[#This Row],[קולות]]),,BaderOfer(קולות58[מפלגה],קולות58[קולות כשרים],קולות58[מנדטים בסיסי],(120- SUM(קולות58[מנדטים בסיסי])),MATCH(קולות58[[#This Row],[מפלגה]],קולות58[מפלגה],0))) -> 9 | I11: =IF(ISBLANK(קולות58[[#This Row],[קולות]]),,BaderOfer_Odafim(קולות58[מפלגה],קולות58[קולות כשרים],קולות58[מנדטים בסיסי],הסכמי_עודפים69[[#All],[עמודה1]],הסכמי_עודפים69[[#All],[עמודה2]],(120- SUM(קולות58[מנדטים בסיסי])),MATCH(קולות58[[#This Row],[מפלגה]],קולות58[מפלגה],0))) -> 9 | K11: הליכוד | L11: הבית היהודי
B12: הבית היהודי | C12: 283910 | D12: =IF(ISBLANK(קולות58[[#This Row],[קולות]]),,(קולות58[[#This Row],[קולות]]/סך_הקולות)) -> 0.06545633958 | E12: =IF(קולות58[[#This Row],[אחוז]]>=אחוז_החסימה,קולות58[[#This Row],[קולות]],) -> 283910 | F12: =IF(ISBLANK(קולות58[[#This Row],[קולות]]),,INT(קולות58[[#This Row],[קולות כשרים]]/מדד_למנדט)) -> 8 | G12: =IF(ISBLANK(קולות58[[#This Row],[קולות]]),,MOD(קולות58[[#This Row],[קולות כשרים]],מדד_למנדט)) -> 3094.2 | H12: =IF(ISBLANK(קולות58[[#This Row],[קולות]]),,BaderOfer(קולות58[מפלגה],קולות58[קולות כשרים],קולות58[מנדטים בסיסי],(120- SUM(קולות58[מנדטים בסיסי])),MATCH(קולות58[[#This Row],[מפלגה]],קולות58[מפלגה],0))) -> 8 | I12: =IF(ISBLANK(קולות58[[#This Row],[קולות]]),,BaderOfer_Odafim(קולות58[מפלגה],קולות58[קולות כשרים],קולות58[מנדטים בסיסי],הסכמי_עודפים69[[#All],[עמודה1]],הסכמי_עודפים69[[#All],[עמודה2]],(120- SUM(קולות58[מנדטים בסיסי])),MATCH(קולות58[[#This Row],[מפלגה]],קולות58[מפלגה],0))) -> 8 | K12: המחנה הציוני | L12: מרצ
B13: העבודה | C13: 190870 | D13: =IF(ISBLANK(קולות58[[#This Row],[קולות]]),,(קולות58[[#This Row],[קולות]]/סך_הקולות)) -> 0.04400567622 | E13: =IF(קולות58[[#This Row],[אחוז]]>=אחוז_החסימה,קולות58[[#This Row],[קולות]],) -> 190870 | F13: =IF(ISBLANK(קולות58[[#This Row],[קולות]]),,INT(קולות58[[#This Row],[קולות כשרים]]/מדד_למנדט)) -> 5 | G13: =IF(ISBLANK(קולות58[[#This Row],[קולות]]),,MOD(קולות58[[#This Row],[קולות כשרים]],מדד_למנדט)) -> 15360.125 | H13: =IF(ISBLANK(קולות58[[#This Row],[קולות]]),,BaderOfer(קולות58[מפלגה],קולות58[קולות כשרים],קולות58[מנדטים בסיסי],(120- SUM(קולות58[מנדטים בסיסי])),MATCH(קולות58[[#This Row],[מפלגה]],קולות58[מפלגה],0))) -> 5 | I13: =IF(ISBLANK(קולות58[[#This Row],[קולות]]),,BaderOfer_Odafim(קולות58[מפלגה],קולות58[קולות כשרים],קולות58[מנדטים בסיסי],הסכמי_עודפים69[[#All],[עמודה1]],הסכמי_עודפים69[[#All],[עמודה2]],(120- SUM(קולות58[מנדטים בסיסי])),MATCH(קולות58[[#This Row],[מפלגה]],קולות58[מפלגה],0))) -> 5
B14: הרשימה המשותפת | C14: 446583 | D14: =IF(ISBLANK(קולות58[[#This Row],[קולות]]),,(קולות58[[#This Row],[קולות]]/סך_הקולות)) -> 0.1029611091 | E14: =IF(קולות58[[#This Row],[אחוז]]>=אחוז_החסימה,קולות58[[#This Row],[קולות]],) -> 446583 | F14: =IF(ISBLANK(קולות58[[#This Row],[קולות]]),,INT(קולות58[[#This Row],[קולות כשרים]]/מדד_למנדט)) -> 12 | G14: =IF(ISBLANK(קולות58[[#This Row],[קולות]]),,MOD(קולות58[[#This Row],[קולות כשרים]],מדד_למנדט)) -> 25359.3 | H14: =IF(ISBLANK(קולות58[[#This Row],[קולות]]),,BaderOfer(קולות58[מפלגה],קולות58[קולות כשרים],קולות58[מנדטים בסיסי],(120- SUM(קולות58[מנדטים בסיסי])),MATCH(קולות58[[#This Row],[מפלגה]],קולות58[מפלגה],0))) -> 13 | I14: =IF(ISBLANK(קולות58[[#This Row],[קולות]]),,BaderOfer_Odafim(קולות58[מפלגה],קולות58[קולות כשרים],קולות58[מנדטים בסיסי],הסכמי_עודפים69[[#All],[עמודה1]],הסכמי_עודפים69[[#All],[עמודה2]],(120- SUM(קולות58[מנדטים בסיסי])),MATCH(קולות58[[#This Row],[מפלגה]],קולות58[מפלגה],0))) -> 13
B15: יחד | C15: 125158 | D15: =IF(ISBLANK(קולות58[[#This Row],[קולות]]),,(קולות58[[#This Row],[קולות]]/סך_הקולות)) -> 0.02885556884 | E15: =IF(קולות58[[#This Row],[אחוז]]>=אחוז_החסימה,קולות58[[#This Row],[קולות]],) -> 0 | F15: =IF(ISBLANK(קולות58[[#This Row],[קולות]]),,INT(קולות58[[#This Row],[קולות כשרים]]/מדד_למנדט)) -> 0 | G15: =IF(ISBLANK(קולות58[[#This Row],[קולות]]),,MOD(קולות58[[#This Row],[קולות כשרים]],מדד_למנדט)) -> 0 | H15: =IF(ISBLANK(קולות58[[#This Row],[קולות]]),,BaderOfer(קולות58[מפלגה],קולות58[קולות כשרים],קולות58[מנדטים בסיסי],(120- SUM(קולות58[מנדטים בסיסי])),MATCH(קולות58[[#This Row],[מפלגה]],קולות58[מפלגה],0))) -> 0 | I15: =IF(ISBLANK(קולות58[[#This Row],[קולות]]),,BaderOfer_Odafim(קולות58[מפלגה],קולות58[קולות כשרים],קולות58[מנדטים בסיסי],הסכמי_עודפים69[[#All],[עמודה1]],הסכמי_עודפים69[[#All],[עמודה2]],(120- SUM(קולות58[מנדטים בסיסי])),MATCH(קולות58[[#This Row],[מפלגה]],קולות58[מפלגה],0))) -> 0
D16: =IF(ISBLANK(קולות58[[#This Row],[קולות]]),,(קולות58[[#This Row],[קולות]]/סך_הקולות)) -> 0 | E16: =IF(קולות58[[#This Row],[אחוז]]>=אחוז_החסימה,קולות58[[#This Row],[קולות]],) -> 0 | F16: =IF(ISBLANK(קולות58[[#This Row],[קולות]]),,INT(קולות58[[#This Row],[קולות כשרים]]/מדד_למנדט)) -> 0 | G16: =IF(ISBLANK(קולות58[[#This Row],[קולות]]),,MOD(קולות58[[#This Row],[קולות כשרים]],מדד_למנדט)) -> 0 | H16: =IF(ISBLANK(קולות58[[#This Row],[קולות]]),,BaderOfer(קולות58[מפלגה],קולות58[קולות כשרים],קולות58[מנדטים בסיסי],(120- SUM(קולות58[מנדטים בסיסי])),MATCH(קולות58[[#This Row],[מפלגה]],קולות58[מפלגה],0))) -> 0 | I16: =IF(ISBLANK(קולות58[[#This Row],[קולות]]),,BaderOfer_Odafim(קולות58[מפלגה],קולות58[קולות כשרים],קולות58[מנדטים בסיסי],הסכמי_עודפים69[[#All],[עמודה1]],הסכמי_עודפים69[[#All],[עמודה2]],(120- SUM(קולות58[מנדטים בסיסי])),MATCH(קולות58[[#This Row],[מפלגה]],קולות58[מפלגה],0))) -> 0
D17: =IF(ISBLANK(קולות58[[#This Row],[קולות]]),,(קולות58[[#This Row],[קולות]]/סך_הקולות)) -> 0 | E17: =IF(קולות58[[#This Row],[אחוז]]>=אחוז_החסימה,קולות58[[#This Row],[קולות]],) -> 0 | F17: =IF(ISBLANK(קולות58[[#This Row],[קולות]]),,INT(קולות58[[#This Row],[קולות כשרים]]/מדד_למנדט)) -> 0 | G17: =IF(ISBLANK(קולות58[[#This Row],[קולות]]),,MOD(קולות58[[#This Row],[קולות כשרים]],מדד_למנדט)) -> 0 | H17: =IF(ISBLANK(קולות58[[#This Row],[קולות]]),,BaderOfer(קולות58[מפלגה],קולות58[קולות כשרים],קולות58[מנדטים בסיסי],(120- SUM(קולות58[מנדטים בסיסי])),MATCH(קולות58[[#This Row],[מפלגה]],קולות58[מפלגה],0))) -> 0 | I17: =IF(ISBLANK(קולות58[[#This Row],[קולות]]),,BaderOfer_Odafim(קולות58[מפלגה],קולות58[קולות כשרים],קולות58[מנדטים בסיסי],הסכמי_עודפים69[[#All],[עמודה1]],הסכמי_עודפים69[[#All],[עמודה2]],(120- SUM(קולות58[מנדטים בסיסי])),MATCH(קולות58[[#This Row],[מפלגה]],קולות58[מפלגה],0))) -> 0 | K17: גושים
D18: =IF(ISBLANK(קולות58[[#This Row],[קולות]]),,(קולות58[[#This Row],[קולות]]/סך_הקולות)) -> 0 | E18: =IF(קולות58[[#This Row],[אחוז]]>=אחוז_החסימה,קולות58[[#This Row],[קולות]],) -> 0 | F18: =IF(ISBLANK(קולות58[[#This Row],[קולות]]),,INT(קולות58[[#This Row],[קולות כשרים]]/מדד_למנדט)) -> 0 | G18: =IF(ISBLANK(קולות58[[#This Row],[קולות]]),,MOD(קולות58[[#This Row],[קולות כשרים]],מדד_למנדט)) -> 0 | H18: =IF(ISBLANK(קולות58[[#This Row],[קולות]]),,BaderOfer(קולות58[מפלגה],קולות58[קולות כשרים],קולות58[מנדטים בסיסי],(120- SUM(קולות58[מנדטים בסיסי])),MATCH(קולות58[[#This Row],[מפלגה]],קולות58[מפלגה],0))) -> 0 | I18: =IF(ISBLANK(קולות58[[#This Row],[קולות]]),,BaderOfer_Odafim(קולות58[מפלגה],קולות58[קולות כשרים],קולות58[מנדטים בסיסי],הסכמי_עודפים69[[#All],[עמודה1]],הסכמי_עודפים69[[#All],[עמודה2]],(120- SUM(קולות58[מנדטים בסיסי])),MATCH(קולות58[[#This Row],[מפלגה]],קולות58[מפלגה],0))) -> 0 | K18: ימין | L18: שמאל
D19: =IF(ISBLANK(קולות58[[#This Row],[קולות]]),,(קולות58[[#This Row],[קולות]]/סך_הקולות)) -> 0 | E19: =IF(קולות58[[#This Row],[אחוז]]>=אחוז_החסימה,קולות58[[#This Row],[קולות]],) -> 0 | F19: =IF(ISBLANK(קולות58[[#This Row],[קולות]]),,INT(קולות58[[#This Row],[קולות כשרים]]/מדד_למנדט)) -> 0 | G19: =IF(ISBLANK(קולות58[[#This Row],[קולות]]),,MOD(קולות58[[#This Row],[קולות כשרים]],מדד_למנדט)) -> 0 | H19: =IF(ISBLANK(קולות58[[#This Row],[קולות]]),,BaderOfer(קולות58[מפלגה],קולות58[קולות כשרים],קולות58[מנדטים בסיסי],(120- SUM(קולות58[מנדטים בסיסי])),MATCH(קולות58[[#This Row],[מפלגה]],קולות58[מפלגה],0))) -> 0 | I19: =IF(ISBLANK(קולות58[[#This Row],[קולות]]),,BaderOfer_Odafim(קולות58[מפלגה],קולות58[קולות כשרים],קולות58[מנדטים בסיסי],הסכמי_עודפים69[[#All],[עמודה1]],הסכמי_עודפים69[[#All],[עמודה2]],(120- SUM(קולות58[מנדטים בסיסי])),MATCH(קולות58[[#This Row],[מפלגה]],קולות58[מפלגה],0))) -> 0
D20: =IF(ISBLANK(קולות58[[#This Row],[קולות]]),,(קולות58[[#This Row],[קולות]]/סך_הקולות)) -> 0 | E20: =IF(קולות58[[#This Row],[אחוז]]>=אחוז_החסימה,קולות58[[#This Row],[קולות]],) -> 0 | F20: =IF(ISBLANK(קולות58[[#This Row],[קולות]]),,INT(קולות58[[#This Row],[קולות כשרים]]/מדד_למנדט)) -> 0 | G20: =IF(ISBLANK(קולות58[[#This Row],[קולות]]),,MOD(קולות58[[#This Row],[קולות כשרים]],מדד_למנדט)) -> 0 | H20: =IF(ISBLANK(קולות58[[#This Row],[קולות]]),,BaderOfer(קולות58[מפלגה],קולות58[קולות כשרים],קולות58[מנדטים בסיסי],(120- SUM(קולות58[מנדטים בסיסי])),MATCH(קולות58[[#This Row],[מפלגה]],קולות58[מפלגה],0))) -> 0 | I20: =IF(ISBLANK(קולות58[[#This Row],[קולות]]),,BaderOfer_Odafim(קולות58[מפלגה],קולות58[קולות כשרים],קולות58[מנדטים בסיסי],הסכמי_עודפים69[[#All],[עמודה1]],הסכמי_עודפים69[[#All],[עמודה2]],(120- SUM(קולות58[מנדטים בסיסי])),MATCH(קולות58[[#This Row],[מפלגה]],קולות58[מפלגה],0))) -> 0
D21: =IF(ISBLANK(קולות58[[#This Row],[קולות]]),,(קולות58[[#This Row],[קולות]]/סך_הקולות)) -> 0 | E21: =IF(קולות58[[#This Row],[אחוז]]>=אחוז_החסימה,קולות58[[#This Row],[קולות]],) -> 0 | F21: =IF(ISBLANK(קולות58[[#This Row],[קולות]]),,INT(קולות58[[#This Row],[קולות כשרים]]/מדד_למנדט)) -> 0 | G21: =IF(ISBLANK(קולות58[[#This Row],[קולות]]),,MOD(קולות58[[#This Row],[קולות כשרים]],מדד_למנדט)) -> 0 | H21: =IF(ISBLANK(קולות58[[#This Row],[קולות]]),,BaderOfer(קולות58[מפלגה],קולות58[קולות כשרים],קולות58[מנדטים בסיסי],(120- SUM(קולות58[מנדטים בסיסי])),MATCH(קולות58[[#This Row],[מפלגה]],קולות58[מפלגה],0))) -> 0 | I21: =IF(ISBLANK(קולות58[[#This Row],[קולות]]),,BaderOfer_Odafim(קולות58[מפלגה],קולות58[קולות כשרים],קולות58[מנדטים בסיסי],הסכמי_עודפים69[[#All],[עמודה1]],הסכמי_עודפים69[[#All],[עמודה2]],(120- SUM(קולות58[מנדטים בסיסי])),MATCH(קולות58[[#This Row],[מפלגה]],קולות58[מפלגה],0))) -> 0
D22: =IF(ISBLANK(קולות58[[#This Row],[קולות]]),,(קולות58[[#This Row],[קולות]]/סך_הקולות)) -> 0 | E22: =IF(קולות58[[#This Row],[אחוז]]>=אחוז_החסימה,קולות58[[#This Row],[קולות]],) -> 0 | F22: =IF(ISBLANK(קולות58[[#This Row],[קולות]]),,INT(קולות58[[#This Row],[קולות כשרים]]/מדד_למנדט)) -> 0 | G22: =IF(ISBLANK(קולות58[[#This Row],[קולות]]),,MOD(קולות58[[#This Row],[קולות כשרים]],מדד_למנדט)) -> 0 | H22: =IF(ISBLANK(קולות58[[#This Row],[קולות]]),,BaderOfer(קולות58[מפלגה],קולות58[קולות כשרים],קולות58[מנדטים בסיסי],(120- SUM(קולות58[מנדטים בסיסי])),MATCH(קולות58[[#This Row],[מפלגה]],קולות58[מפלגה],0))) -> 0 | I22: =IF(ISBLANK(קולות58[[#This Row],[קולות]]),,BaderOfer_Odafim(קולות58[מפלגה],קולות58[קולות כשרים],קולות58[מנדטים בסיסי],הסכמי_עודפים69[[#All],[עמודה1]],הסכמי_עודפים69[[#All],[עמודה2]],(120- SUM(קולות58[מנדטים בסיסי])),MATCH(קולות58[[#This Row],[מפלגה]],קולות58[מפלגה],0))) -> 0
D23: =IF(ISBLANK(קולות58[[#This Row],[קולות]]),,(קולות58[[#This Row],[קולות]]/סך_הקולות)) -> 0 | E23: =IF(קולות58[[#This Row],[אחוז]]>=אחוז_החסימה,קולות58[[#This Row],[קולות]],) -> 0 | F23: =IF(ISBLANK(קולות58[[#This Row],[קולות]]),,INT(קולות58[[#This Row],[קולות כשרים]]/מדד_למנדט)) -> 0 | G23: =IF(ISBLANK(קולות58[[#This Row],[קולות]]),,MOD(קולות58[[#This Row],[קולות כשרים]],מדד_למנדט)) -> 0 | H23: =IF(ISBLANK(קולות58[[#This Row],[קולות]]),,BaderOfer(קולות58[מפלגה],קולות58[קולות כשרים],קולות58[מנדטים בסיסי],(120- SUM(קולות58[מנדטים בסיסי])),MATCH(קולות58[[#This Row],[מפלגה]],קולות58[מפלגה],0))) -> 0 | I23: =IF(ISBLANK(קולות58[[#This Row],[קולות]]),,BaderOfer_Odafim(קולות58[מפלגה],קולות58[קולות כשרים],קולות58[מנדטים בסיסי],הסכמי_עודפים69[[#All],[עמודה1]],הסכמי_עודפים69[[#All],[עמודה2]],(120- SUM(קולות58[מנדטים בסיסי])),MATCH(קולות58[[#This Row],[מפלגה]],קולות58[מפלגה],0))) -> 0
D24: =IF(ISBLANK(קולות58[[#This Row],[קולות]]),,(קולות58[[#This Row],[קולות]]/סך_הקולות)) -> 0 | E24: =IF(קולות58[[#This Row],[אחוז]]>=אחוז_החסימה,קולות58[[#This Row],[קולות]],) -> 0 | F24: =IF(ISBLANK(קולות58[[#This Row],[קולות]]),,INT(קולות58[[#This Row],[קולות כשרים]]/מדד_למנדט)) -> 0 | G24: =IF(ISBLANK(קולות58[[#This Row],[קולות]]),,MOD(קולות58[[#This Row],[קולות כשרים]],מדד_למנדט)) -> 0 | H24: =IF(ISBLANK(קולות58[[#This Row],[קולות]]),,BaderOfer(קולות58[מפלגה],קולות58[קולות כשרים],קולות58[מנדטים בסיסי],(120- SUM(קולות58[מנדטים בסיסי])),MATCH(קולות58[[#This Row],[מפלגה]],קולות58[מפלגה],0))) -> 0 | I24: =IF(ISBLANK(קולות58[[#This Row],[קולות]]),,BaderOfer_Odafim(קולות58[מפלגה],קולות58[קולות כשרים],קולות58[מנדטים בסיסי],הסכמי_עודפים69[[#All],[עמודה1]],הסכמי_עודפים69[[#All],[עמודה2]],(120- SUM(קולות58[מנדטים בסיסי])),MATCH(קולות58[[#This Row],[מפלגה]],קולות58[מפלגה],0))) -> 0
D25: =IF(ISBLANK(קולות58[[#This Row],[קולות]]),,(קולות58[[#This Row],[קולות]]/סך_הקולות)) -> 0 | E25: =IF(קולות58[[#This Row],[אחוז]]>=אחוז_החסימה,קולות58[[#This Row],[קולות]],) -> 0 | F25: =IF(ISBLANK(קולות58[[#This Row],[קולות]]),,INT(קולות58[[#This Row],[קולות כשרים]]/מדד_למנדט)) -> 0 | G25: =IF(ISBLANK(קולות58[[#This Row],[קולות]]),,MOD(קולות58[[#This Row],[קולות כשרים]],מדד_למנדט)) -> 0 | H25: =IF(ISBLANK(קולות58[[#This Row],[קולות]]),,BaderOfer(קולות58[מפלגה],קולות58[קולות כשרים],קולות58[מנדטים בסיסי],(120- SUM(קולות58[מנדטים בסיסי])),MATCH(קולות58[[#This Row],[מפלגה]],קולות58[מפלגה],0))) -> 0 | I25: =IF(ISBLANK(קולות58[[#This Row],[קולות]]),,BaderOfer_Odafim(קולות58[מפלגה],קולות58[קולות כשרים],קולות58[מנדטים בסיסי],הסכמי_עודפים69[[#All],[עמודה1]],הסכמי_עודפים69[[#All],[עמודה2]],(120- SUM(קולות58[מנדטים בסיסי])),MATCH(קולות58[[#This Row],[מפלגה]],קולות58[מפלגה],0))) -> 0 | K25: =Goshim(טבלה3710[ימין],קולות[מפלגה],קולות[מנדטים הסכם עודפים]) -> 0 | L25: =Goshim(טבלה3710[שמאל],קולות[מפלגה],קולות[מנדטים הסכם עודפים]) -> 0

Sheet כנסת ה-21
B1: הכנסת ה-21 | ד' ניסן תשע"ט | 5/4/2019
I2: =IF(NOT(SUM(קולות5[מנדטים הסכם עודפים])=120),"נדרש הטלת מטבע","") -> 
B3: מפלגה | C3: קולות | D3: אחוז | E3: קולות כשרים | F3: מנדטים בסיסי | G3: קולות עודפים | H3: מנדטים באדר עופר | I3: מנדטים הסכם עודפים | K3: סך הקולות | L3: סך הקולות הכשרים
B4: יהדות התורה | C4: 249049 | D4: =IF(ISBLANK(קולות5[[#This Row],[קולות]]),,(קולות5[[#This Row],[קולות]]/סך_הקולות)) -> 0.05826274557 | E4: =IF(קולות5[[#This Row],[אחוז]]>=אחוז_החסימה,קולות5[[#This Row],[קולות]],) -> 249049 | F4: =IF(ISBLANK(קולות5[[#This Row],[קולות]]),,INT(קולות5[[#This Row],[קולות כשרים]]/מדד_למנדט)) -> 7 | G4: =IF(ISBLANK(קולות5[[#This Row],[קולות]]),,MOD(קולות5[[#This Row],[קולות כשרים]],מדד_למנדט)) -> 19025.85 | H4: =IF(ISBLANK(קולות5[[#This Row],[קולות]]),,BaderOfer(קולות5[מפלגה],קולות5[קולות כשרים],קולות5[מנדטים בסיסי],(120- SUM(קולות5[מנדטים בסיסי])),MATCH(קולות5[[#This Row],[מפלגה]],קולות5[מפלגה],0))) -> 7 | I4: =IF(ISBLANK(קולות5[[#This Row],[קולות]]),,BaderOfer_Odafim(קולות5[מפלגה],קולות5[קולות כשרים],קולות5[מנדטים בסיסי],הסכמי_עודפים6[[#All],[עמודה1]],הסכמי_עודפים6[[#All],[עמודה2]],(120- SUM(קולות5[מנדטים בסיסי])),MATCH(קולות5[[#This Row],[מפלגה]],קולות5[מפלגה],0))) -> 8 | K4: =SUM(קולות5[קולות]) -> 4274584 | L4: =SUM(קולות5[קולות כשרים]) -> 3943254
B5: הליכוד | C5: 1140370 | D5: =IF(ISBLANK(קולות5[[#This Row],[קולות]]),,(קולות5[[#This Row],[קולות]]/סך_הקולות)) -> 0.2667791766 | E5: =IF(קולות5[[#This Row],[אחוז]]>=אחוז_החסימה,קולות5[[#This Row],[קולות]],) -> 1140370 | F5: =IF(ISBLANK(קולות5[[#This Row],[קולות]]),,INT(קולות5[[#This Row],[קולות כשרים]]/מדד_למנדט)) -> 34 | G5: =IF(ISBLANK(קולות5[[#This Row],[קולות]]),,MOD(קולות5[[#This Row],[קולות כשרים]],מדד_למנדט)) -> 23114.7 | H5: =IF(ISBLANK(קולות5[[#This Row],[קולות]]),,BaderOfer(קולות5[מפלגה],קולות5[קולות כשרים],קולות5[מנדטים בסיסי],(120- SUM(קולות5[מנדטים בסיסי])),MATCH(קולות5[[#This Row],[מפלגה]],קולות5[מפלגה],0))) -> 36 | I5: =IF(ISBLANK(קולות5[[#This Row],[קולות]]),,BaderOfer_Odafim(קולות5[מפלגה],קולות5[קולות כשרים],קולות5[מנדטים בסיסי],הסכמי_עודפים6[[#All],[עמודה1]],הסכמי_עודפים6[[#All],[עמודה2]],(120- SUM(קולות5[מנדטים בסיסי])),MATCH(קולות5[[#This Row],[מפלגה]],קולות5[מפלגה],0))) -> 35 | K5: אחוז החסימה | L5: מדד למנדט
B6: כחול לבן | C6: 1125881 | D6: =IF(ISBLANK(קולות5[[#This Row],[קולות]]),,(קולות5[[#This Row],[קולות]]/סך_הקולות)) -> 0.263389607 | E6: =IF(קולות5[[#This Row],[אחוז]]>=אחוז_החסימה,קולות5[[#This Row],[קולות]],) -> 1125881 | F6: =IF(ISBLANK(קולות5[[#This Row],[קולות]]),,INT(קולות5[[#This Row],[קולות כשרים]]/מדד_למנדט)) -> 34 | G6: =IF(ISBLANK(קולות5[[#This Row],[קולות]]),,MOD(קולות5[[#This Row],[קולות כשרים]],מדד_למנדט)) -> 8625.7 | H6: =IF(ISBLANK(קולות5[[#This Row],[קולות]]),,BaderOfer(קולות5[מפלגה],קולות5[קולות כשרים],קולות5[מנדטים בסיסי],(120- SUM(קולות5[מנדטים בסיסי])),MATCH(קולות5[[#This Row],[מפלגה]],קולות5[מפלגה],0))) -> 35 | I6: =IF(ISBLANK(קולות5[[#This Row],[קולות]]),,BaderOfer_Odafim(קולות5[מפלגה],קולות5[קולות כשרים],קולות5[מנדטים בסיסי],הסכמי_עודפים6[[#All],[עמודה1]],הסכמי_עודפים6[[#All],[עמודה2]],(120- SUM(קולות5[מנדטים בסיסי])),MATCH(קולות5[[#This Row],[מפלגה]],קולות5[מפלגה],0))) -> 35 | K6: 0.0325 | L6: =סך_קולות_כשרים/120 -> 32860.45
B7: ש"ס | C7: 258275 | D7: =IF(ISBLANK(קולות5[[#This Row],[קולות]]),,(קולות5[[#This Row],[קולות]]/סך_הקולות)) -> 0.06042108425 | E7: =IF(קולות5[[#This Row],[אחוז]]>=אחוז_החסימה,קולות5[[#This Row],[קולות]],) -> 258275 | F7: =IF(ISBLANK(קולות5[[#This Row],[קולות]]),,INT(קולות5[[#This Row],[קולות כשרים]]/מדד_למנדט)) -> 7 | G7: =IF(ISBLANK(קולות5[[#This Row],[קולות]]),,MOD(קולות5[[#This Row],[קולות כשרים]],מדד_למנדט)) -> 28251.85 | H7: =IF(ISBLANK(קולות5[[#This Row],[קולות]]),,BaderOfer(קולות5[מפלגה],קולות5[קולות כשרים],קולות5[מנדטים בסיסי],(120- SUM(קולות5[מנדטים בסיסי])),MATCH(קולות5[[#This Row],[מפלגה]],קולות5[מפלגה],0))) -> 8 | I7: =IF(ISBLANK(קולות5[[#This Row],[קולות]]),,BaderOfer_Odafim(קולות5[מפלגה],קולות5[קולות כשרים],קולות5[מנדטים בסיסי],הסכמי_עודפים6[[#All],[עמודה1]],הסכמי_עודפים6[[#All],[עמודה2]],(120- SUM(קולות5[מנדטים בסיסי])),MATCH(קולות5[[#This Row],[מפלגה]],קולות5[מפלגה],0))) -> 8
B8: איחוד מפלגות הימין | C8: 159468 | D8: =IF(ISBLANK(קולות5[[#This Row],[קולות]]),,(קולות5[[#This Row],[קולות]]/סך_הקולות)) -> 0.03730608639 | E8: =IF(קולות5[[#This Row],[אחוז]]>=אחוז_החסימה,קולות5[[#This Row],[קולות]],) -> 159468 | F8: =IF(ISBLANK(קולות5[[#This Row],[קולות]]),,INT(קולות5[[#This Row],[קולות כשרים]]/מדד_למנדט)) -> 4 | G8: =IF(ISBLANK(קולות5[[#This Row],[קולות]]),,MOD(קולות5[[#This Row],[קולות כשרים]],מדד_למנדט)) -> 28026.2 | H8: =IF(ISBLANK(קולות5[[#This Row],[קולות]]),,BaderOfer(קולות5[מפלגה],קולות5[קולות כשרים],קולות5[מנדטים בסיסי],(120- SUM(קולות5[מנדטים בסיסי])),MATCH(קולות5[[#This Row],[מפלגה]],קולות5[מפלגה],0))) -> 5 | I8: =IF(ISBLANK(קולות5[[#This Row],[קולות]]),,BaderOfer_Odafim(קולות5[מפלגה],קולות5[קולות כשרים],קולות5[מנדטים בסיסי],הסכמי_עודפים6[[#All],[עמודה1]],הסכמי_עודפים6[[#All],[עמודה2]],(120- SUM(קולות5[מנדטים בסיסי])),MATCH(קולות5[[#This Row],[מפלגה]],קולות5[מפלגה],0))) -> 5 | K8: הסכמי עודפים
B9: ישראל ביתנו | C9: 173004 | D9: =IF(ISBLANK(קולות5[[#This Row],[קולות]]),,(קולות5[[#This Row],[קולות]]/סך_הקולות)) -> 0.04047271033 | E9: =IF(קולות5[[#This Row],[אחוז]]>=אחוז_החסימה,קולות5[[#This Row],[קולות]],) -> 173004 | F9: =IF(ISBLANK(קולות5[[#This Row],[קולות]]),,INT(קולות5[[#This Row],[קולות כשרים]]/מדד_למנדט)) -> 5 | G9: =IF(ISBLANK(קולות5[[#This Row],[קולות]]),,MOD(קולות5[[#This Row],[קולות כשרים]],מדד_למנדט)) -> 8701.75 | H9: =IF(ISBLANK(קולות5[[#This Row],[קולות]]),,BaderOfer(קולות5[מפלגה],קולות5[קולות כשרים],קולות5[מנדטים בסיסי],(120- SUM(קולות5[מנדטים בסיסי])),MATCH(קולות5[[#This Row],[מפלגה]],קולות5[מפלגה],0))) -> 5 | I9: =IF(ISBLANK(קולות5[[#This Row],[קולות]]),,BaderOfer_Odafim(קולות5[מפלגה],קולות5[קולות כשרים],קולות5[מנדטים בסיסי],הסכמי_עודפים6[[#All],[עמודה1]],הסכמי_עודפים6[[#All],[עמודה2]],(120- SUM(קולות5[מנדטים בסיסי])),MATCH(קולות5[[#This Row],[מפלגה]],קולות5[מפלגה],0))) -> 5 | K9: יהדות התורה | L9: ש"ס
B10: מרצ | C10: 156473 | D10: =IF(ISBLANK(קולות5[[#This Row],[קולות]]),,(קולות5[[#This Row],[קולות]]/סך_הקולות)) -> 0.03660543342 | E10: =IF(קולות5[[#This Row],[אחוז]]>=אחוז_החסימה,קולות5[[#This Row],[קולות]],) -> 156473 | F10: =IF(ISBLANK(קולות5[[#This Row],[קולות]]),,INT(קולות5[[#This Row],[קולות כשרים]]/מדד_למנדט)) -> 4 | G10: =IF(ISBLANK(קולות5[[#This Row],[קולות]]),,MOD(קולות5[[#This Row],[קולות כשרים]],מדד_למנדט)) -> 25031.2 | H10: =IF(ISBLANK(קולות5[[#This Row],[קולות]]),,BaderOfer(קולות5[מפלגה],קולות5[קולות כשרים],קולות5[מנדטים בסיסי],(120- SUM(קולות5[מנדטים בסיסי])),MATCH(קולות5[[#This Row],[מפלגה]],קולות5[מפלגה],0))) -> 4 | I10: =IF(ISBLANK(קולות5[[#This Row],[קולות]]),,BaderOfer_Odafim(קולות5[מפלגה],קולות5[קולות כשרים],קולות5[מנדטים בסיסי],הסכמי_עודפים6[[#All],[עמודה1]],הסכמי_עודפים6[[#All],[עמודה2]],(120- SUM(קולות5[מנדטים בסיסי])),MATCH(קולות5[[#This Row],[מפלגה]],קולות5[מפלגה],0))) -> 4 | K10: הימין החדש | L10: ישראל ביתנו
B11: כולנו | C11: 152756 | D11: =IF(ISBLANK(קולות5[[#This Row],[קולות]]),,(קולות5[[#This Row],[קולות]]/סך_הקולות)) -> 0.03573587512 | E11: =IF(קולות5[[#This Row],[אחוז]]>=אחוז_החסימה,קולות5[[#This Row],[קולות]],) -> 152756 | F11: =IF(ISBLANK(קולות5[[#This Row],[קולות]]),,INT(קולות5[[#This Row],[קולות כשרים]]/מדד_למנדט)) -> 4 | G11: =IF(ISBLANK(קולות5[[#This Row],[קולות]]),,MOD(קולות5[[#This Row],[קולות כשרים]],מדד_למנדט)) -> 21314.2 | H11: =IF(ISBLANK(קולות5[[#This Row],[קולות]]),,BaderOfer(קולות5[מפלגה],קולות5[קולות כשרים],קולות5[מנדטים בסיסי],(120- SUM(קולות5[מנדטים בסיסי])),MATCH(קולות5[[#This Row],[מפלגה]],קולות5[מפלגה],0))) -> 4 | I11: =IF(ISBLANK(קולות5[[#This Row],[קולות]]),,BaderOfer_Odafim(קולות5[מפלגה],קולות5[קולות כשרים],קולות5[מנדטים בסיסי],הסכמי_עודפים6[[#All],[עמודה1]],הסכמי_עודפים6[[#All],[עמודה2]],(120- SUM(קולות5[מנדטים בסיסי])),MATCH(קולות5[[#This Row],[מפלגה]],קולות5[מפלגה],0))) -> 4 | K11: הליכוד | L11: איחוד מפלגות הימין
B12: הימין החדש | C12: 138598 | D12: =IF(ISBLANK(קולות5[[#This Row],[קולות]]),,(קולות5[[#This Row],[קולות]]/סך_הקולות)) -> 0.03242373995 | E12: =IF(קולות5[[#This Row],[אחוז]]>=אחוז_החסימה,קולות5[[#This Row],[קולות]],) -> 0 | F12: =IF(ISBLANK(קולות5[[#This Row],[קולות]]),,INT(קולות5[[#This Row],[קולות כשרים]]/מדד_למנדט)) -> 0 | G12: =IF(ISBLANK(קולות5[[#This Row],[קולות]]),,MOD(קולות5[[#This Row],[קולות כשרים]],מדד_למנדט)) -> 0 | H12: =IF(ISBLANK(קולות5[[#This Row],[קולות]]),,BaderOfer(קולות5[מפלגה],קולות5[קולות כשרים],קולות5[מנדטים בסיסי],(120- SUM(קולות5[מנדטים בסיסי])),MATCH(קולות5[[#This Row],[מפלגה]],קולות5[מפלגה],0))) -> 0 | I12: =IF(ISBLANK(קולות5[[#This Row],[קולות]]),,BaderOfer_Odafim(קולות5[מפלגה],קולות5[קולות כשרים],קולות5[מנדטים בסיסי],הסכמי_עודפים6[[#All],[עמודה1]],הסכמי_עודפים6[[#All],[עמודה2]],(120- SUM(קולות5[מנדטים בסיסי])),MATCH(קולות5[[#This Row],[מפלגה]],קולות5[מפלגה],0))) -> 0 | K12: העבודה | L12: מרצ
B13: העבודה | C13: 190870 | D13: =IF(ISBLANK(קולות5[[#This Row],[קולות]]),,(קולות5[[#This Row],[קולות]]/סך_הקולות)) -> 0.04465229833 | E13: =IF(קולות5[[#This Row],[אחוז]]>=אחוז_החסימה,קולות5[[#This Row],[קולות]],) -> 190870 | F13: =IF(ISBLANK(קולות5[[#This Row],[קולות]]),,INT(קולות5[[#This Row],[קולות כשרים]]/מדד_למנדט)) -> 5 | G13: =IF(ISBLANK(קולות5[[#This Row],[קולות]]),,MOD(קולות5[[#This Row],[קולות כשרים]],מדד_למנדט)) -> 26567.75 | H13: =IF(ISBLANK(קולות5[[#This Row],[קולות]]),,BaderOfer(קולות5[מפלגה],קולות5[קולות כשרים],קולות5[מנדטים בסיסי],(120- SUM(קולות5[מנדטים בסיסי])),MATCH(קולות5[[#This Row],[מפלגה]],קולות5[מפלגה],0))) -> 6 | I13: =IF(ISBLANK(קולות5[[#This Row],[קולות]]),,BaderOfer_Odafim(קולות5[מפלגה],קולות5[קולות כשרים],קולות5[מנדטים בסיסי],הסכמי_עודפים6[[#All],[עמודה1]],הסכמי_עודפים6[[#All],[עמודה2]],(120- SUM(קולות5[מנדטים בסיסי])),MATCH(קולות5[[#This Row],[מפלגה]],קולות5[מפלגה],0))) -> 6 | K13: איימן עודה | L13: הרשימה הערבית
B14: איימן עודה | C14: 193442 | D14: =IF(ISBLANK(קולות5[[#This Row],[קולות]]),,(קולות5[[#This Row],[קולות]]/סך_הקולות)) -> 0.04525399431 | E14: =IF(קולות5[[#This Row],[אחוז]]>=אחוז_החסימה,קולות5[[#This Row],[קולות]],) -> 193442 | F14: =IF(ISBLANK(קולות5[[#This Row],[קולות]]),,INT(קולות5[[#This Row],[קולות כשרים]]/מדד_למנדט)) -> 5 | G14: =IF(ISBLANK(קולות5[[#This Row],[קולות]]),,MOD(קולות5[[#This Row],[קולות כשרים]],מדד_למנדט)) -> 29139.75 | H14: =IF(ISBLANK(קולות5[[#This Row],[קולות]]),,BaderOfer(קולות5[מפלגה],קולות5[קולות כשרים],קולות5[מנדטים בסיסי],(120- SUM(קולות5[מנדטים בסיסי])),MATCH(קולות5[[#This Row],[מפלגה]],קולות5[מפלגה],0))) -> 6 | I14: =IF(ISBLANK(קולות5[[#This Row],[קולות]]),,BaderOfer_Odafim(קולות5[מפלגה],קולות5[קולות כשרים],קולות5[מנדטים בסיסי],הסכמי_עודפים6[[#All],[עמודה1]],הסכמי_עודפים6[[#All],[עמודה2]],(120- SUM(קולות5[מנדטים בסיסי])),MATCH(קולות5[[#This Row],[מפלגה]],קולות5[מפלגה],0))) -> 6
B15: הרשימה הערבית | C15: 143666 | D15: =IF(ISBLANK(קולות5[[#This Row],[קולות]]),,(קולות5[[#This Row],[קולות]]/סך_הקולות)) -> 0.0336093524 | E15: =IF(קולות5[[#This Row],[אחוז]]>=אחוז_החסימה,קולות5[[#This Row],[קולות]],) -> 143666 | F15: =IF(ISBLANK(קולות5[[#This Row],[קולות]]),,INT(קולות5[[#This Row],[קולות כשרים]]/מדד_למנדט)) -> 4 | G15: =IF(ISBLANK(קולות5[[#This Row],[קולות]]),,MOD(קולות5[[#This Row],[קולות כשרים]],מדד_למנדט)) -> 12224.2 | H15: =IF(ISBLANK(קולות5[[#This Row],[קולות]]),,BaderOfer(קולות5[מפלגה],קולות5[קולות כשרים],קולות5[מנדטים בסיסי],(120- SUM(קולות5[מנדטים בסיסי])),MATCH(קולות5[[#This Row],[מפלגה]],קולות5[מפלגה],0))) -> 4 | I15: =IF(ISBLANK(קולות5[[#This Row],[קולות]]),,BaderOfer_Odafim(קולות5[מפלגה],קולות5[קולות כשרים],קולות5[מנדטים בסיסי],הסכמי_עודפים6[[#All],[עמודה1]],הסכמי_עודפים6[[#All],[עמודה2]],(120- SUM(קולות5[מנדטים בסיסי])),MATCH(קולות5[[#This Row],[מפלגה]],קולות5[מפלגה],0))) -> 4
B16: זהות | C16: 118031 | D16: =IF(ISBLANK(קולות5[[#This Row],[קולות]]),,(קולות5[[#This Row],[קולות]]/סך_הקולות)) -> 0.02761227759 | E16: =IF(קולות5[[#This Row],[אחוז]]>=אחוז_החסימה,קולות5[[#This Row],[קולות]],) -> 0 | F16: =IF(ISBLANK(קולות5[[#This Row],[קולות]]),,INT(קולות5[[#This Row],[קולות כשרים]]/מדד_למנדט)) -> 0 | G16: =IF(ISBLANK(קולות5[[#This Row],[קולות]]),,MOD(קולות5[[#This Row],[קולות כשרים]],מדד_למנדט)) -> 0 | H16: =IF(ISBLANK(קולות5[[#This Row],[קולות]]),,BaderOfer(קולות5[מפלגה],קולות5[קולות כשרים],קולות5[מנדטים בסיסי],(120- SUM(קולות5[מנדטים בסיסי])),MATCH(קולות5[[#This Row],[מפלגה]],קולות5[מפלגה],0))) -> 0 | I16: =IF(ISBLANK(קולות5[[#This Row],[קולות]]),,BaderOfer_Odafim(קולות5[מפלגה],קולות5[קולות כשרים],קולות5[מנדטים בסיסי],הסכמי_עודפים6[[#All],[עמודה1]],הסכמי_עודפים6[[#All],[עמודה2]],(120- SUM(קולות5[מנדטים בסיסי])),MATCH(קולות5[[#This Row],[מפלגה]],קולות5[מפלגה],0))) -> 0
B17: גשר | C17: 74701 | D17: =IF(ISBLANK(קולות5[[#This Row],[קולות]]),,(קולות5[[#This Row],[קולות]]/סך_הקולות)) -> 0.01747561868 | E17: =IF(קולות5[[#This Row],[אחוז]]>=אחוז_החסימה,קולות5[[#This Row],[קולות]],) -> 0 | F17: =IF(ISBLANK(קולות5[[#This Row],[קולות]]),,INT(קולות5[[#This Row],[קולות כשרים]]/מדד_למנדט)) -> 0 | G17: =IF(ISBLANK(קולות5[[#This Row],[קולות]]),,MOD(קולות5[[#This Row],[קולות כשרים]],מדד_למנדט)) -> 0 | H17: =IF(ISBLANK(קולות5[[#This Row],[קולות]]),,BaderOfer(קולות5[מפלגה],קולות5[קולות כשרים],קולות5[מנדטים בסיסי],(120- SUM(קולות5[מנדטים בסיסי])),MATCH(קולות5[[#This Row],[מפלגה]],קולות5[מפלגה],0))) -> 0 | I17: =IF(ISBLANK(קולות5[[#This Row],[קולות]]),,BaderOfer_Odafim(קולות5[מפלגה],קולות5[קולות כשרים],קולות5[מנדטים בסיסי],הסכמי_עודפים6[[#All],[עמודה1]],הסכמי_עודפים6[[#All],[עמודה2]],(120- SUM(קולות5[מנדטים בסיסי])),MATCH(קולות5[[#This Row],[מפלגה]],קולות5[מפלגה],0))) -> 0 | K17: גושים
D18: =IF(ISBLANK(קולות5[[#This Row],[קולות]]),,(קולות5[[#This Row],[קולות]]/סך_הקולות)) -> 0 | E18: =IF(קולות5[[#This Row],[אחוז]]>=אחוז_החסימה,קולות5[[#This Row],[קולות]],) -> 0 | F18: =IF(ISBLANK(קולות5[[#This Row],[קולות]]),,INT(קולות5[[#This Row],[קולות כשרים]]/מדד_למנדט)) -> 0 | G18: =IF(ISBLANK(קולות5[[#This Row],[קולות]]),,MOD(קולות5[[#This Row],[קולות כשרים]],מדד_למנדט)) -> 0 | H18: =IF(ISBLANK(קולות5[[#This Row],[קולות]]),,BaderOfer(קולות5[מפלגה],קולות5[קולות כשרים],קולות5[מנדטים בסיסי],(120- SUM(קולות5[מנדטים בסיסי])),MATCH(קולות5[[#This Row],[מפלגה]],קולות5[מפלגה],0))) -> 0 | I18: =IF(ISBLANK(קולות5[[#This Row],[קולות]]),,BaderOfer_Odafim(קולות5[מפלגה],קולות5[קולות כשרים],קולות5[מנדטים בסיסי],הסכמי_עודפים6[[#All],[עמודה1]],הסכמי_עודפים6[[#All],[עמודה2]],(120- SUM(קולות5[מנדטים בסיסי])),MATCH(קולות5[[#This Row],[מפלגה]],קולות5[מפלגה],0))) -> 0 | K18: ימין | L18: שמאל
D19: =IF(ISBLANK(קולות5[[#This Row],[קולות]]),,(קולות5[[#This Row],[קולות]]/סך_הקולות)) -> 0 | E19: =IF(קולות5[[#This Row],[אחוז]]>=אחוז_החסימה,קולות5[[#This Row],[קולות]],) -> 0 | F19: =IF(ISBLANK(קולות5[[#This Row],[קולות]]),,INT(קולות5[[#This Row],[קולות כשרים]]/מדד_למנדט)) -> 0 | G19: =IF(ISBLANK(קולות5[[#This Row],[קולות]]),,MOD(קולות5[[#This Row],[קולות כשרים]],מדד_למנדט)) -> 0 | H19: =IF(ISBLANK(קולות5[[#This Row],[קולות]]),,BaderOfer(קולות5[מפלגה],קולות5[קולות כשרים],קולות5[מנדטים בסיסי],(120- SUM(קולות5[מנדטים בסיסי])),MATCH(קולות5[[#This Row],[מפלגה]],קולות5[מפלגה],0))) -> 0 | I19: =IF(ISBLANK(קולות5[[#This Row],[קולות]]),,BaderOfer_Odafim(קולות5[מפלגה],קולות5[קולות כשרים],קולות5[מנדטים בסיסי],הסכמי_עודפים6[[#All],[עמודה1]],הסכמי_עודפים6[[#All],[עמודה2]],(120- SUM(קולות5[מנדטים בסיסי])),MATCH(קולות5[[#This Row],[מפלגה]],קולות5[מפלגה],0))) -> 0 | K19: יהדות התורה | L19: העבודה
D20: =IF(ISBLANK(קולות5[[#This Row],[קולות]]),,(קולות5[[#This Row],[קולות]]/סך_הקולות)) -> 0 | E20: =IF(קולות5[[#This Row],[אחוז]]>=אחוז_החסימה,קולות5[[#This Row],[קולות]],) -> 0 | F20: =IF(ISBLANK(קולות5[[#This Row],[קולות]]),,INT(קולות5[[#This Row],[קולות כשרים]]/מדד_למנדט)) -> 0 | G20: =IF(ISBLANK(קולות5[[#This Row],[קולות]]),,MOD(קולות5[[#This Row],[קולות כשרים]],מדד_למנדט)) -> 0 | H20: =IF(ISBLANK(קולות5[[#This Row],[קולות]]),,BaderOfer(קולות5[מפלגה],קולות5[קולות כשרים],קולות5[מנדטים בסיסי],(120- SUM(קולות5[מנדטים בסיסי])),MATCH(קולות5[[#This Row],[מפלגה]],קולות5[מפלגה],0))) -> 0 | I20: =IF(ISBLANK(קולות5[[#This Row],[קולות]]),,BaderOfer_Odafim(קולות5[מפלגה],קולות5[קולות כשרים],קולות5[מנדטים בסיסי],הסכמי_עודפים6[[#All],[עמודה1]],הסכמי_עודפים6[[#All],[עמודה2]],(120- SUM(קולות5[מנדטים בסיסי])),MATCH(קולות5[[#This Row],[מפלגה]],קולות5[מפלגה],0))) -> 0 | K20: הימין החדש | L20: מרצ
D21: =IF(ISBLANK(קולות5[[#This Row],[קולות]]),,(קולות5[[#This Row],[קולות]]/סך_הקולות)) -> 0 | E21: =IF(קולות5[[#This Row],[אחוז]]>=אחוז_החסימה,קולות5[[#This Row],[קולות]],) -> 0 | F21: =IF(ISBLANK(קולות5[[#This Row],[קולות]]),,INT(קולות5[[#This Row],[קולות כשרים]]/מדד_למנדט)) -> 0 | G21: =IF(ISBLANK(קולות5[[#This Row],[קולות]]),,MOD(קולות5[[#This Row],[קולות כשרים]],מדד_למנדט)) -> 0 | H21: =IF(ISBLANK(קולות5[[#This Row],[קולות]]),,BaderOfer(קולות5[מפלגה],קולות5[קולות כשרים],קולות5[מנדטים בסיסי],(120- SUM(קולות5[מנדטים בסיסי])),MATCH(קולות5[[#This Row],[מפלגה]],קולות5[מפלגה],0))) -> 0 | I21: =IF(ISBLANK(קולות5[[#This Row],[קולות]]),,BaderOfer_Odafim(קולות5[מפלגה],קולות5[קולות כשרים],קולות5[מנדטים בסיסי],הסכמי_עודפים6[[#All],[עמודה1]],הסכמי_עודפים6[[#All],[עמודה2]],(120- SUM(קולות5[מנדטים בסיסי])),MATCH(קולות5[[#This Row],[מפלגה]],קולות5[מפלגה],0))) -> 0 | K21: הליכוד | L21: הרשימה הערבית
D22: =IF(ISBLANK(קולות5[[#This Row],[קולות]]),,(קולות5[[#This Row],[קולות]]/סך_הקולות)) -> 0 | E22: =IF(קולות5[[#This Row],[אחוז]]>=אחוז_החסימה,קולות5[[#This Row],[קולות]],) -> 0 | F22: =IF(ISBLANK(קולות5[[#This Row],[קולות]]),,INT(קולות5[[#This Row],[קולות כשרים]]/מדד_למנדט)) -> 0 | G22: =IF(ISBLANK(קולות5[[#This Row],[קולות]]),,MOD(קולות5[[#This Row],[קולות כשרים]],מדד_למנדט)) -> 0 | H22: =IF(ISBLANK(קולות5[[#This Row],[קולות]]),,BaderOfer(קולות5[מפלגה],קולות5[קולות כשרים],קולות5[מנדטים בסיסי],(120- SUM(קולות5[מנדטים בסיסי])),MATCH(קולות5[[#This Row],[מפלגה]],קולות5[מפלגה],0))) -> 0 | I22: =IF(ISBLANK(קולות5[[#This Row],[קולות]]),,BaderOfer_Odafim(קולות5[מפלגה],קולות5[קולות כשרים],קולות5[מנדטים בסיסי],הסכמי_עודפים6[[#All],[עמודה1]],הסכמי_עודפים6[[#All],[עמודה2]],(120- SUM(קולות5[מנדטים בסיסי])),MATCH(קולות5[[#This Row],[מפלגה]],קולות5[מפלגה],0))) -> 0 | K22: ש"ס | L22: איימן עודה
D23: =IF(ISBLANK(קולות5[[#This Row],[קולות]]),,(קולות5[[#This Row],[קולות]]/סך_הקולות)) -> 0 | E23: =IF(קולות5[[#This Row],[אחוז]]>=אחוז_החסימה,קולות5[[#This Row],[קולות]],) -> 0 | F23: =IF(ISBLANK(קולות5[[#This Row],[קולות]]),,INT(קולות5[[#This Row],[קולות כשרים]]/מדד_למנדט)) -> 0 | G23: =IF(ISBLANK(קולות5[[#This Row],[קולות]]),,MOD(קולות5[[#This Row],[קולות כשרים]],מדד_למנדט)) -> 0 | H23: =IF(ISBLANK(קולות5[[#This Row],[קולות]]),,BaderOfer(קולות5[מפלגה],קולות5[קולות כשרים],קולות5[מנדטים בסיסי],(120- SUM(קולות5[מנדטים בסיסי])),MATCH(קולות5[[#This Row],[מפלגה]],קולות5[מפלגה],0))) -> 0 | I23: =IF(ISBLANK(קולות5[[#This Row],[קולות]]),,BaderOfer_Odafim(קולות5[מפלגה],קולות5[קולות כשרים],קולות5[מנדטים בסיסי],הסכמי_עודפים6[[#All],[עמודה1]],הסכמי_עודפים6[[#All],[עמודה2]],(120- SUM(קולות5[מנדטים בסיסי])),MATCH(קולות5[[#This Row],[מפלגה]],קולות5[מפלגה],0))) -> 0 | K23: איחוד מפלגות הימין | L23: כחול לבן
D24: =IF(ISBLANK(קולות5[[#This Row],[קולות]]),,(קולות5[[#This Row],[קולות]]/סך_הקולות)) -> 0 | E24: =IF(קולות5[[#This Row],[אחוז]]>=אחוז_החסימה,קולות5[[#This Row],[קולות]],) -> 0 | F24: =IF(ISBLANK(קולות5[[#This Row],[קולות]]),,INT(קולות5[[#This Row],[קולות כשרים]]/מדד_למנדט)) -> 0 | G24: =IF(ISBLANK(קולות5[[#This Row],[קולות]]),,MOD(קולות5[[#This Row],[קולות כשרים]],מדד_למנדט)) -> 0 | H24: =IF(ISBLANK(קולות5[[#This Row],[קולות]]),,BaderOfer(קולות5[מפלגה],קולות5[קולות כשרים],קולות5[מנדטים בסיסי],(120- SUM(קולות5[מנדטים בסיסי])),MATCH(קולות5[[#This Row],[מפלגה]],קולות5[מפלגה],0))) -> 0 | I24: =IF(ISBLANK(קולות5[[#This Row],[קולות]]),,BaderOfer_Odafim(קולות5[מפלגה],קולות5[קולות כשרים],קולות5[מנדטים בסיסי],הסכמי_עודפים6[[#All],[עמודה1]],הסכמי_עודפים6[[#All],[עמודה2]],(120- SUM(קולות5[מנדטים בסיסי])),MATCH(קולות5[[#This Row],[מפלגה]],קולות5[מפלגה],0))) -> 0 | K24: כולנו
D25: =IF(ISBLANK(קולות5[[#This Row],[קולות]]),,(קולות5[[#This Row],[קולות]]/סך_הקולות)) -> 0 | E25: =IF(קולות5[[#This Row],[אחוז]]>=אחוז_החסימה,קולות5[[#This Row],[קולות]],) -> 0 | F25: =IF(ISBLANK(קולות5[[#This Row],[קולות]]),,INT(קולות5[[#This Row],[קולות כשרים]]/מדד_למנדט)) -> 0 | G25: =IF(ISBLANK(קולות5[[#This Row],[קולות]]),,MOD(קולות5[[#This Row],[קולות כשרים]],מדד_למנדט)) -> 0 | H25: =IF(ISBLANK(קולות5[[#This Row],[קולות]]),,BaderOfer(קולות5[מפלגה],קולות5[קולות כשרים],קולות5[מנדטים בסיסי],(120- SUM(קולות5[מנדטים בסיסי])),MATCH(קולות5[[#This Row],[מפלגה]],קולות5[מפלגה],0))) -> 0 | I25: =IF(ISBLANK(קולות5[[#This Row],[קולות]]),,BaderOfer_Odafim(קולות5[מפלגה],קולות5[קולות כשרים],קולות5[מנדטים בסיסי],הסכמי_עודפים6[[#All],[עמודה1]],הסכמי_עודפים6[[#All],[עמודה2]],(120- SUM(קולות5[מנדטים בסיסי])),MATCH(קולות5[[#This Row],[מפלגה]],קולות5[מפלגה],0))) -> 0 | K25: =Goshim(טבלה37[ימין],קולות[מפלגה],קולות[מנדטים הסכם עודפים]) -> 48 | L25: =Goshim(טבלה37[שמאל],קולות[מפלגה],קולות[מנדטים הסכם עודפים]) -> 38

Sheet כנסת ה-22
B1: הכנסת ה-22 | י"ז אלול תשע"ט | 17/9/2019
I2: =IF(NOT(SUM(קולות[מנדטים הסכם עודפים])=120),"נדרש הטלת מטבע","") -> 
B3: מפלגה | C3: קולות | D3: אחוז | E3: קולות כשרים | F3: מנדטים בסיסי | G3: קולות עודפים | H3: מנדטים באדר עופר | I3: מנדטים הסכם עודפים | K3: סך הקולות | L3: סך הקולות הכשרים
B4: יהדות התורה | C4: 268775 | D4: =IF(ISBLANK(קולות[[#This Row],[קולות]]),,(קולות[[#This Row],[קולות]]/סך_הקולות)) -> 0.06117252324 | E4: =IF(קולות[[#This Row],[אחוז]]>=אחוז_החסימה,קולות[[#This Row],[קולות]],) -> 268775 | F4: =IF(ISBLANK(קולות[[#This Row],[קולות]]),,INT(קולות[[#This Row],[קולות כשרים]]/מדד_למנדט)) -> 7 | G4: =IF(ISBLANK(קולות[[#This Row],[קולות]]),,MOD(קולות[[#This Row],[קולות כשרים]],מדד_למנדט)) -> 17351.8 | H4: =IF(ISBLANK(קולות[[#This Row],[קולות]]),,BaderOfer(קולות[מפלגה],קולות[קולות כשרים],קולות[מנדטים בסיסי],(120- SUM(קולות[מנדטים בסיסי])),MATCH(קולות[[#This Row],[מפלגה]],קולות[מפלגה],0))) -> 7 | I4: =IF(ISBLANK(קולות[[#This Row],[קולות]]),,BaderOfer_Odafim(קולות[מפלגה],קולות[קולות כשרים],קולות[מנדטים בסיסי],הסכמי_עודפים[[#All],[עמודה1]],הסכמי_עודפים[[#All],[עמודה2]],(120- SUM(קולות[מנדטים בסיסי])),MATCH(קולות[[#This Row],[מפלגה]],קולות[מפלגה],0))) -> 7 | K4: =SUM(קולות[קולות]) -> 4393721 | L4: =SUM(קולות[קולות כשרים]) -> 4310112
B5: הליכוד | C5: 1113617 | D5: =IF(ISBLANK(קולות[[#This Row],[קולות]]),,(קולות[[#This Row],[קולות]]/סך_הקולות)) -> 0.2534564666 | E5: =IF(קולות[[#This Row],[אחוז]]>=אחוז_החסימה,קולות[[#This Row],[קולות]],) -> 1113617 | F5: =IF(ISBLANK(קולות[[#This Row],[קולות]]),,INT(קולות[[#This Row],[קולות כשרים]]/מדד_למנדט)) -> 31 | G5: =IF(ISBLANK(קולות[[#This Row],[קולות]]),,MOD(קולות[[#This Row],[קולות כשרים]],מדד_למנדט)) -> 171.4 | H5: =IF(ISBLANK(קולות[[#This Row],[קולות]]),,BaderOfer(קולות[מפלגה],קולות[קולות כשרים],קולות[מנדטים בסיסי],(120- SUM(קולות[מנדטים בסיסי])),MATCH(קולות[[#This Row],[מפלגה]],קולות[מפלגה],0))) -> 32 | I5: =IF(ISBLANK(קולות[[#This Row],[קולות]]),,BaderOfer_Odafim(קולות[מפלגה],קולות[קולות כשרים],קולות[מנדטים בסיסי],הסכמי_עודפים[[#All],[עמודה1]],הסכמי_עודפים[[#All],[עמודה2]],(120- SUM(קולות[מנדטים בסיסי])),MATCH(קולות[[#This Row],[מפלגה]],קולות[מפלגה],0))) -> 32 | K5: אחוז החסימה | L5: מדד למנדט
B6: כחול לבן | C6: 1151214 | D6: =IF(ISBLANK(קולות[[#This Row],[קולות]]),,(קולות[[#This Row],[קולות]]/סך_הקולות)) -> 0.2620134506 | E6: =IF(קולות[[#This Row],[אחוז]]>=אחוז_החסימה,קולות[[#This Row],[קולות]],) -> 1151214 | F6: =IF(ISBLANK(קולות[[#This Row],[קולות]]),,INT(קולות[[#This Row],[קולות כשרים]]/מדד_למנדט)) -> 32 | G6: =IF(ISBLANK(קולות[[#This Row],[קולות]]),,MOD(קולות[[#This Row],[קולות כשרים]],מדד_למנדט)) -> 1850.8 | H6: =IF(ISBLANK(קולות[[#This Row],[קולות]]),,BaderOfer(קולות[מפלגה],קולות[קולות כשרים],קולות[מנדטים בסיסי],(120- SUM(קולות[מנדטים בסיסי])),MATCH(קולות[[#This Row],[מפלגה]],קולות[מפלגה],0))) -> 33 | I6: =IF(ISBLANK(קולות[[#This Row],[קולות]]),,BaderOfer_Odafim(קולות[מפלגה],קולות[קולות כשרים],קולות[מנדטים בסיסי],הסכמי_עודפים[[#All],[עמודה1]],הסכמי_עודפים[[#All],[עמודה2]],(120- SUM(קולות[מנדטים בסיסי])),MATCH(קולות[[#This Row],[מפלגה]],קולות[מפלגה],0))) -> 33 | K6: 0.0325 | L6: =סך_קולות_כשרים/120 -> 35917.6
B7: ש"ס | C7: 330199 | D7: =IF(ISBLANK(קולות[[#This Row],[קולות]]),,(קולות[[#This Row],[קולות]]/סך_הקולות)) -> 0.07515247327 | E7: =IF(קולות[[#This Row],[אחוז]]>=אחוז_החסימה,קולות[[#This Row],[קולות]],) -> 330199 | F7: =IF(ISBLANK(קולות[[#This Row],[קולות]]),,INT(קולות[[#This Row],[קולות כשרים]]/מדד_למנדט)) -> 9 | G7: =IF(ISBLANK(קולות[[#This Row],[קולות]]),,MOD(קולות[[#This Row],[קולות כשרים]],מדד_למנדט)) -> 6940.6 | H7: =IF(ISBLANK(קולות[[#This Row],[קולות]]),,BaderOfer(קולות[מפלגה],קולות[קולות כשרים],קולות[מנדטים בסיסי],(120- SUM(קולות[מנדטים בסיסי])),MATCH(קולות[[#This Row],[מפלגה]],קולות[מפלגה],0))) -> 9 | I7: =IF(ISBLANK(קולות[[#This Row],[קולות]]),,BaderOfer_Odafim(קולות[מפלגה],קולות[קולות כשרים],קולות[מנדטים בסיסי],הסכמי_עודפים[[#All],[עמודה1]],הסכמי_עודפים[[#All],[עמודה2]],(120- SUM(קולות[מנדטים בסיסי])),MATCH(קולות[[#This Row],[מפלגה]],קולות[מפלגה],0))) -> 9
B8: ימינה | C8: 260665 | D8: =IF(ISBLANK(קולות[[#This Row],[קולות]]),,(קולות[[#This Row],[קולות]]/סך_הקולות)) -> 0.05932670736 | E8: =IF(קולות[[#This Row],[אחוז]]>=אחוז_החסימה,קולות[[#This Row],[קולות]],) -> 260665 | F8: =IF(ISBLANK(קולות[[#This Row],[קולות]]),,INT(קולות[[#This Row],[קולות כשרים]]/מדד_למנדט)) -> 7 | G8: =IF(ISBLANK(קולות[[#This Row],[קולות]]),,MOD(קולות[[#This Row],[קולות כשרים]],מדד_למנדט)) -> 9241.8 | H8: =IF(ISBLANK(קולות[[#This Row],[קולות]]),,BaderOfer(קולות[מפלגה],קולות[קולות כשרים],קולות[מנדטים בסיסי],(120- SUM(קולות[מנדטים בסיסי])),MATCH(קולות[[#This Row],[מפלגה]],קולות[מפלגה],0))) -> 7 | I8: =IF(ISBLANK(קולות[[#This Row],[קולות]]),,BaderOfer_Odafim(קולות[מפלגה],קולות[קולות כשרים],קולות[מנדטים בסיסי],הסכמי_עודפים[[#All],[עמודה1]],הסכמי_עודפים[[#All],[עמודה2]],(120- SUM(קולות[מנדטים בסיסי])),MATCH(קולות[[#This Row],[מפלגה]],קולות[מפלגה],0))) -> 7 | K8: הסכמי עודפים
B9: ישראל ביתנו | C9: 310154 | D9: =IF(ISBLANK(קולות[[#This Row],[קולות]]),,(קולות[[#This Row],[קולות]]/סך_הקולות)) -> 0.07059028099 | E9: =IF(קולות[[#This Row],[אחוז]]>=אחוז_החסימה,קולות[[#This Row],[קולות]],) -> 310154 | F9: =IF(ISBLANK(קולות[[#This Row],[קולות]]),,INT(קולות[[#This Row],[קולות כשרים]]/מדד_למנדט)) -> 8 | G9: =IF(ISBLANK(קולות[[#This Row],[קולות]]),,MOD(קולות[[#This Row],[קולות כשרים]],מדד_למנדט)) -> 22813.2 | H9: =IF(ISBLANK(קולות[[#This Row],[קולות]]),,BaderOfer(קולות[מפלגה],קולות[קולות כשרים],קולות[מנדטים בסיסי],(120- SUM(קולות[מנדטים בסיסי])),MATCH(קולות[[#This Row],[מפלגה]],קולות[מפלגה],0))) -> 8 | I9: =IF(ISBLANK(קולות[[#This Row],[קולות]]),,BaderOfer_Odafim(קולות[מפלגה],קולות[קולות כשרים],קולות[מנדטים בסיסי],הסכמי_עודפים[[#All],[עמודה1]],הסכמי_עודפים[[#All],[עמודה2]],(120- SUM(קולות[מנדטים בסיסי])),MATCH(קולות[[#This Row],[מפלגה]],קולות[מפלגה],0))) -> 8 | K9: יהדות התורה | L9: ש"ס
B10: מרצ | C10: 192495 | D10: =IF(ISBLANK(קולות[[#This Row],[קולות]]),,(קולות[[#This Row],[קולות]]/סך_הקולות)) -> 0.04381138447 | E10: =IF(קולות[[#This Row],[אחוז]]>=אחוז_החסימה,קולות[[#This Row],[קולות]],) -> 192495 | F10: =IF(ISBLANK(קולות[[#This Row],[קולות]]),,INT(קולות[[#This Row],[קולות כשרים]]/מדד_למנדט)) -> 5 | G10: =IF(ISBLANK(קולות[[#This Row],[קולות]]),,MOD(קולות[[#This Row],[קולות כשרים]],מדד_למנדט)) -> 12907 | H10: =IF(ISBLANK(קולות[[#This Row],[קולות]]),,BaderOfer(קולות[מפלגה],קולות[קולות כשרים],קולות[מנדטים בסיסי],(120- SUM(קולות[מנדטים בסיסי])),MATCH(קולות[[#This Row],[מפלגה]],קולות[מפלגה],0))) -> 5 | I10: =IF(ISBLANK(קולות[[#This Row],[קולות]]),,BaderOfer_Odafim(קולות[מפלגה],קולות[קולות כשרים],קולות[מנדטים בסיסי],הסכמי_עודפים[[#All],[עמודה1]],הסכמי_עודפים[[#All],[עמודה2]],(120- SUM(קולות[מנדטים בסיסי])),MATCH(קולות[[#This Row],[מפלגה]],קולות[מפלגה],0))) -> 5 | K10: כחול לבן | L10: ישראל ביתנו
B11: עוצמה יהודית | C11: 83609 | D11: =IF(ISBLANK(קולות[[#This Row],[קולות]]),,(קולות[[#This Row],[קולות]]/סך_הקולות)) -> 0.01902920099 | E11: =IF(קולות[[#This Row],[אחוז]]>=אחוז_החסימה,קולות[[#This Row],[קולות]],) -> 0 | F11: =IF(ISBLANK(קולות[[#This Row],[קולות]]),,INT(קולות[[#This Row],[קולות כשרים]]/מדד_למנדט)) -> 0 | G11: =IF(ISBLANK(קולות[[#This Row],[קולות]]),,MOD(קולות[[#This Row],[קולות כשרים]],מדד_למנדט)) -> 0 | H11: =IF(ISBLANK(קולות[[#This Row],[קולות]]),,BaderOfer(קולות[מפלגה],קולות[קולות כשרים],קולות[מנדטים בסיסי],(120- SUM(קולות[מנדטים בסיסי])),MATCH(קולות[[#This Row],[מפלגה]],קולות[מפלגה],0))) -> 0 | I11: =IF(ISBLANK(קולות[[#This Row],[קולות]]),,BaderOfer_Odafim(קולות[מפלגה],קולות[קולות כשרים],קולות[מנדטים בסיסי],הסכמי_עודפים[[#All],[עמודה1]],הסכמי_עודפים[[#All],[עמודה2]],(120- SUM(קולות[מנדטים בסיסי])),MATCH(קולות[[#This Row],[מפלגה]],קולות[מפלגה],0))) -> 0 | K11: הליכוד | L11: ימינה
B12: המפלגות הערביות | C12: 470211 | D12: =IF(ISBLANK(קולות[[#This Row],[קולות]]),,(קולות[[#This Row],[קולות]]/סך_הקולות)) -> 0.1070188571 | E12: =IF(קולות[[#This Row],[אחוז]]>=אחוז_החסימה,קולות[[#This Row],[קולות]],) -> 470211 | F12: =IF(ISBLANK(קולות[[#This Row],[קולות]]),,INT(קולות[[#This Row],[קולות כשרים]]/מדד_למנדט)) -> 13 | G12: =IF(ISBLANK(קולות[[#This Row],[קולות]]),,MOD(קולות[[#This Row],[קולות כשרים]],מדד_למנדט)) -> 3282.2 | H12: =IF(ISBLANK(קולות[[#This Row],[קולות]]),,BaderOfer(קולות[מפלגה],קולות[קולות כשרים],קולות[מנדטים בסיסי],(120- SUM(קולות[מנדטים בסיסי])),MATCH(קולות[[#This Row],[מפלגה]],קולות[מפלגה],0))) -> 13 | I12: =IF(ISBLANK(קולות[[#This Row],[קולות]]),,BaderOfer_Odafim(קולות[מפלגה],קולות[קולות כשרים],קולות[מנדטים בסיסי],הסכמי_עודפים[[#All],[עמודה1]],הסכמי_עודפים[[#All],[עמודה2]],(120- SUM(קולות[מנדטים בסיסי])),MATCH(קולות[[#This Row],[מפלגה]],קולות[מפלגה],0))) -> 13 | K12: העבודה - גשר | L12: מרצ
B13: העבודה - גשר | C13: 212782 | D13: =IF(ISBLANK(קולות[[#This Row],[קולות]]),,(קולות[[#This Row],[קולות]]/סך_הקולות)) -> 0.04842865535 | E13: =IF(קולות[[#This Row],[אחוז]]>=אחוז_החסימה,קולות[[#This Row],[קולות]],) -> 212782 | F13: =IF(ISBLANK(קולות[[#This Row],[קולות]]),,INT(קולות[[#This Row],[קולות כשרים]]/מדד_למנדט)) -> 5 | G13: =IF(ISBLANK(קולות[[#This Row],[קולות]]),,MOD(קולות[[#This Row],[קולות כשרים]],מדד_למנדט)) -> 33194 | H13: =IF(ISBLANK(קולות[[#This Row],[קולות]]),,BaderOfer(קולות[מפלגה],קולות[קולות כשרים],קולות[מנדטים בסיסי],(120- SUM(קולות[מנדטים בסיסי])),MATCH(קולות[[#This Row],[מפלגה]],קולות[מפלגה],0))) -> 6 | I13: =IF(ISBLANK(קולות[[#This Row],[קולות]]),,BaderOfer_Odafim(קולות[מפלגה],קולות[קולות כשרים],קולות[מנדטים בסיסי],הסכמי_עודפים[[#All],[עמודה1]],הסכמי_עודפים[[#All],[עמודה2]],(120- SUM(קולות[מנדטים בסיסי])),MATCH(קולות[[#This Row],[מפלגה]],קולות[מפלגה],0))) -> 6
D14: =IF(ISBLANK(קולות[[#This Row],[קולות]]),,(קולות[[#This Row],[קולות]]/סך_הקולות)) -> 0 | E14: =IF(קולות[[#This Row],[אחוז]]>=אחוז_החסימה,קולות[[#This Row],[קולות]],) -> 0 | F14: =IF(ISBLANK(קולות[[#This Row],[קולות]]),,INT(קולות[[#This Row],[קולות כשרים]]/מדד_למנדט)) -> 0 | G14: =IF(ISBLANK(קולות[[#This Row],[קולות]]),,MOD(קולות[[#This Row],[קולות כשרים]],מדד_למנדט)) -> 0 | H14: =IF(ISBLANK(קולות[[#This Row],[קולות]]),,BaderOfer(קולות[מפלגה],קולות[קולות כשרים],קולות[מנדטים בסיסי],(120- SUM(קולות[מנדטים בסיסי])),MATCH(קולות[[#This Row],[מפלגה]],קולות[מפלגה],0))) -> 0 | I14: =IF(ISBLANK(קולות[[#This Row],[קולות]]),,BaderOfer_Odafim(קולות[מפלגה],קולות[קולות כשרים],קולות[מנדטים בסיסי],הסכמי_עודפים[[#All],[עמודה1]],הסכמי_עודפים[[#All],[עמודה2]],(120- SUM(קולות[מנדטים בסיסי])),MATCH(קולות[[#This Row],[מפלגה]],קולות[מפלגה],0))) -> 0
D15: =IF(ISBLANK(קולות[[#This Row],[קולות]]),,(קולות[[#This Row],[קולות]]/סך_הקולות)) -> 0 | E15: =IF(קולות[[#This Row],[אחוז]]>=אחוז_החסימה,קולות[[#This Row],[קולות]],) -> 0 | F15: =IF(ISBLANK(קולות[[#This Row],[קולות]]),,INT(קולות[[#This Row],[קולות כשרים]]/מדד_למנדט)) -> 0 | G15: =IF(ISBLANK(קולות[[#This Row],[קולות]]),,MOD(קולות[[#This Row],[קולות כשרים]],מדד_למנדט)) -> 0 | H15: =IF(ISBLANK(קולות[[#This Row],[קולות]]),,BaderOfer(קולות[מפלגה],קולות[קולות כשרים],קולות[מנדטים בסיסי],(120- SUM(קולות[מנדטים בסיסי])),MATCH(קולות[[#This Row],[מפלגה]],קולות[מפלגה],0))) -> 0 | I15: =IF(ISBLANK(קולות[[#This Row],[קולות]]),,BaderOfer_Odafim(קולות[מפלגה],קולות[קולות כשרים],קולות[מנדטים בסיסי],הסכמי_עודפים[[#All],[עמודה1]],הסכמי_עודפים[[#All],[עמודה2]],(120- SUM(קולות[מנדטים בסיסי])),MATCH(קולות[[#This Row],[מפלגה]],קולות[מפלגה],0))) -> 0
D16: =IF(ISBLANK(קולות[[#This Row],[קולות]]),,(קולות[[#This Row],[קולות]]/סך_הקולות)) -> 0 | E16: =IF(קולות[[#This Row],[אחוז]]>=אחוז_החסימה,קולות[[#This Row],[קולות]],) -> 0 | F16: =IF(ISBLANK(קולות[[#This Row],[קולות]]),,INT(קולות[[#This Row],[קולות כשרים]]/מדד_למנדט)) -> 0 | G16: =IF(ISBLANK(קולות[[#This Row],[קולות]]),,MOD(קולות[[#This Row],[קולות כשרים]],מדד_למנדט)) -> 0 | H16: =IF(ISBLANK(קולות[[#This Row],[קולות]]),,BaderOfer(קולות[מפלגה],קולות[קולות כשרים],קולות[מנדטים בסיסי],(120- SUM(קולות[מנדטים בסיסי])),MATCH(קולות[[#This Row],[מפלגה]],קולות[מפלגה],0))) -> 0 | I16: =IF(ISBLANK(קולות[[#This Row],[קולות]]),,BaderOfer_Odafim(קולות[מפלגה],קולות[קולות כשרים],קולות[מנדטים בסיסי],הסכמי_עודפים[[#All],[עמודה1]],הסכמי_עודפים[[#All],[עמודה2]],(120- SUM(קולות[מנדטים בסיסי])),MATCH(קולות[[#This Row],[מפלגה]],קולות[מפלגה],0))) -> 0
D17: =IF(ISBLANK(קולות[[#This Row],[קולות]]),,(קולות[[#This Row],[קולות]]/סך_הקולות)) -> 0 | E17: =IF(קולות[[#This Row],[אחוז]]>=אחוז_החסימה,קולות[[#This Row],[קולות]],) -> 0 | F17: =IF(ISBLANK(קולות[[#This Row],[קולות]]),,INT(קולות[[#This Row],[קולות כשרים]]/מדד_למנדט)) -> 0 | G17: =IF(ISBLANK(קולות[[#This Row],[קולות]]),,MOD(קולות[[#This Row],[קולות כשרים]],מדד_למנדט)) -> 0 | H17: =IF(ISBLANK(קולות[[#This Row],[קולות]]),,BaderOfer(קולות[מפלגה],קולות[קולות כשרים],קולות[מנדטים בסיסי],(120- SUM(קולות[מנדטים בסיסי])),MATCH(קולות[[#This Row],[מפלגה]],קולות[מפלגה],0))) -> 0 | I17: =IF(ISBLANK(קולות[[#This Row],[קולות]]),,BaderOfer_Odafim(קולות[מפלגה],קולות[קולות כשרים],קולות[מנדטים בסיסי],הסכמי_עודפים[[#All],[עמודה1]],הסכמי_עודפים[[#All],[עמודה2]],(120- SUM(קולות[מנדטים בסיסי])),MATCH(קולות[[#This Row],[מפלגה]],קולות[מפלגה],0))) -> 0 | K17: גושים
D18: =IF(ISBLANK(קולות[[#This Row],[קולות]]),,(קולות[[#This Row],[קולות]]/סך_הקולות)) -> 0 | E18: =IF(קולות[[#This Row],[אחוז]]>=אחוז_החסימה,קולות[[#This Row],[קולות]],) -> 0 | F18: =IF(ISBLANK(קולות[[#This Row],[קולות]]),,INT(קולות[[#This Row],[קולות כשרים]]/מדד_למנדט)) -> 0 | G18: =IF(ISBLANK(קולות[[#This Row],[קולות]]),,MOD(קולות[[#This Row],[קולות כשרים]],מדד_למנדט)) -> 0 | H18: =IF(ISBLANK(קולות[[#This Row],[קולות]]),,BaderOfer(קולות[מפלגה],קולות[קולות כשרים],קולות[מנדטים בסיסי],(120- SUM(קולות[מנדטים בסיסי])),MATCH(קולות[[#This Row],[מפלגה]],קולות[מפלגה],0))) -> 0 | I18: =IF(ISBLANK(קולות[[#This Row],[קולות]]),,BaderOfer_Odafim(קולות[מפלגה],קולות[קולות כשרים],קולות[מנדטים בסיסי],הסכמי_עודפים[[#All],[עמודה1]],הסכמי_עודפים[[#All],[עמודה2]],(120- SUM(קולות[מנדטים בסיסי])),MATCH(קולות[[#This Row],[מפלגה]],קולות[מפלגה],0))) -> 0 | K18: ימין | L18: שמאל
D19: =IF(ISBLANK(קולות[[#This Row],[קולות]]),,(קולות[[#This Row],[קולות]]/סך_הקולות)) -> 0 | E19: =IF(קולות[[#This Row],[אחוז]]>=אחוז_החסימה,קולות[[#This Row],[קולות]],) -> 0 | F19: =IF(ISBLANK(קולות[[#This Row],[קולות]]),,INT(קולות[[#This Row],[קולות כשרים]]/מדד_למנדט)) -> 0 | G19: =IF(ISBLANK(קולות[[#This Row],[קולות]]),,MOD(קולות[[#This Row],[קולות כשרים]],מדד_למנדט)) -> 0 | H19: =IF(ISBLANK(קולות[[#This Row],[קולות]]),,BaderOfer(קולות[מפלגה],קולות[קולות כשרים],קולות[מנדטים בסיסי],(120- SUM(קולות[מנדטים בסיסי])),MATCH(קולות[[#This Row],[מפלגה]],קולות[מפלגה],0))) -> 0 | I19: =IF(ISBLANK(קולות[[#This Row],[קולות]]),,BaderOfer_Odafim(קולות[מפלגה],קולות[קולות כשרים],קולות[מנדטים בסיסי],הסכמי_עודפים[[#All],[עמודה1]],הסכמי_עודפים[[#All],[עמודה2]],(120- SUM(קולות[מנדטים בסיסי])),MATCH(קולות[[#This Row],[מפלגה]],קולות[מפלגה],0))) -> 0 | K19: הליכוד | L19: כחול לבן
D20: =IF(ISBLANK(קולות[[#This Row],[קולות]]),,(קולות[[#This Row],[קולות]]/סך_הקולות)) -> 0 | E20: =IF(קולות[[#This Row],[אחוז]]>=אחוז_החסימה,קולות[[#This Row],[קולות]],) -> 0 | F20: =IF(ISBLANK(קולות[[#This Row],[קולות]]),,INT(קולות[[#This Row],[קולות כשרים]]/מדד_למנדט)) -> 0 | G20: =IF(ISBLANK(קולות[[#This Row],[קולות]]),,MOD(קולות[[#This Row],[קולות כשרים]],מדד_למנדט)) -> 0 | H20: =IF(ISBLANK(קולות[[#This Row],[קולות]]),,BaderOfer(קולות[מפלגה],קולות[קולות כשרים],קולות[מנדטים בסיסי],(120- SUM(קולות[מנדטים בסיסי])),MATCH(קולות[[#This Row],[מפלגה]],קולות[מפלגה],0))) -> 0 | I20: =IF(ISBLANK(קולות[[#This Row],[קולות]]),,BaderOfer_Odafim(קולות[מפלגה],קולות[קולות כשרים],קולות[מנדטים בסיסי],הסכמי_עודפים[[#All],[עמודה1]],הסכמי_עודפים[[#All],[עמודה2]],(120- SUM(קולות[מנדטים בסיסי])),MATCH(קולות[[#This Row],[מפלגה]],קולות[מפלגה],0))) -> 0 | K20: ימינה
D21: =IF(ISBLANK(קולות[[#This Row],[קולות]]),,(קולות[[#This Row],[קולות]]/סך_הקולות)) -> 0 | E21: =IF(קולות[[#This Row],[אחוז]]>=אחוז_החסימה,קולות[[#This Row],[קולות]],) -> 0 | F21: =IF(ISBLANK(קולות[[#This Row],[קולות]]),,INT(קולות[[#This Row],[קולות כשרים]]/מדד_למנדט)) -> 0 | G21: =IF(ISBLANK(קולות[[#This Row],[קולות]]),,MOD(קולות[[#This Row],[קולות כשרים]],מדד_למנדט)) -> 0 | H21: =IF(ISBLANK(קולות[[#This Row],[קולות]]),,BaderOfer(קולות[מפלגה],קולות[קולות כשרים],קולות[מנדטים בסיסי],(120- SUM(קולות[מנדטים בסיסי])),MATCH(קולות[[#This Row],[מפלגה]],קולות[מפלגה],0))) -> 0 | I21: =IF(ISBLANK(קולות[[#This Row],[קולות]]),,BaderOfer_Odafim(קולות[מפלגה],קולות[קולות כשרים],קולות[מנדטים בסיסי],הסכמי_עודפים[[#All],[עמודה1]],הסכמי_עודפים[[#All],[עמודה2]],(120- SUM(קולות[מנדטים בסיסי])),MATCH(קולות[[#This Row],[מפלגה]],קולות[מפלגה],0))) -> 0 | K21: ש"ס
D22: =IF(ISBLANK(קולות[[#This Row],[קולות]]),,(קולות[[#This Row],[קולות]]/סך_הקולות)) -> 0 | E22: =IF(קולות[[#This Row],[אחוז]]>=אחוז_החסימה,קולות[[#This Row],[קולות]],) -> 0 | F22: =IF(ISBLANK(קולות[[#This Row],[קולות]]),,INT(קולות[[#This Row],[קולות כשרים]]/מדד_למנדט)) -> 0 | G22: =IF(ISBLANK(קולות[[#This Row],[קולות]]),,MOD(קולות[[#This Row],[קולות כשרים]],מדד_למנדט)) -> 0 | H22: =IF(ISBLANK(קולות[[#This Row],[קולות]]),,BaderOfer(קולות[מפלגה],קולות[קולות כשרים],קולות[מנדטים בסיסי],(120- SUM(קולות[מנדטים בסיסי])),MATCH(קולות[[#This Row],[מפלגה]],קולות[מפלגה],0))) -> 0 | I22: =IF(ISBLANK(קולות[[#This Row],[קולות]]),,BaderOfer_Odafim(קולות[מפלגה],קולות[קולות כשרים],קולות[מנדטים בסיסי],הסכמי_עודפים[[#All],[עמודה1]],הסכמי_עודפים[[#All],[עמודה2]],(120- SUM(קולות[מנדטים בסיסי])),MATCH(קולות[[#This Row],[מפלגה]],קולות[מפלגה],0))) -> 0 | K22: יהדות התורה
D23: =IF(ISBLANK(קולות[[#This Row],[קולות]]),,(קולות[[#This Row],[קולות]]/סך_הקולות)) -> 0 | E23: =IF(קולות[[#This Row],[אחוז]]>=אחוז_החסימה,קולות[[#This Row],[קולות]],) -> 0 | F23: =IF(ISBLANK(קולות[[#This Row],[קולות]]),,INT(קולות[[#This Row],[קולות כשרים]]/מדד_למנדט)) -> 0 | G23: =IF(ISBLANK(קולות[[#This Row],[קולות]]),,MOD(קולות[[#This Row],[קולות כשרים]],מדד_למנדט)) -> 0 | H23: =IF(ISBLANK(קולות[[#This Row],[קולות]]),,BaderOfer(קולות[מפלגה],קולות[קולות כשרים],קולות[מנדטים בסיסי],(120- SUM(קולות[מנדטים בסיסי])),MATCH(קולות[[#This Row],[מפלגה]],קולות[מפלגה],0))) -> 0 | I23: =IF(ISBLANK(קולות[[#This Row],[קולות]]),,BaderOfer_Odafim(קולות[מפלגה],קולות[קולות כשרים],קולות[מנדטים בסיסי],הסכמי_עודפים[[#All],[עמודה1]],הסכמי_עודפים[[#All],[עמודה2]],(120- SUM(קולות[מנדטים בסיסי])),MATCH(קולות[[#This Row],[מפלגה]],קולות[מפלגה],0))) -> 0
D24: =IF(ISBLANK(קולות[[#This Row],[קולות]]),,(קולות[[#This Row],[קולות]]/סך_הקולות)) -> 0 | E24: =IF(קולות[[#This Row],[אחוז]]>=אחוז_החסימה,קולות[[#This Row],[קולות]],) -> 0 | F24: =IF(ISBLANK(קולות[[#This Row],[קולות]]),,INT(קולות[[#This Row],[קולות כשרים]]/מדד_למנדט)) -> 0 | G24: =IF(ISBLANK(קולות[[#This Row],[קולות]]),,MOD(קולות[[#This Row],[קולות כשרים]],מדד_למנדט)) -> 0 | H24: =IF(ISBLANK(קולות[[#This Row],[קולות]]),,BaderOfer(קולות[מפלגה],קולות[קולות כשרים],קולות[מנדטים בסיסי],(120- SUM(קולות[מנדטים בסיסי])),MATCH(קולות[[#This Row],[מפלגה]],קולות[מפלגה],0))) -> 0 | I24: =IF(ISBLANK(קולות[[#This Row],[קולות]]),,BaderOfer_Odafim(קולות[מפלגה],קולות[קולות כשרים],קולות[מנדטים בסיסי],הסכמי_עודפים[[#All],[עמודה1]],הסכמי_עודפים[[#All],[עמודה2]],(120- SUM(קולות[מנדטים בסיסי])),MATCH(קולות[[#This Row],[מפלגה]],קולות[מפלגה],0))) -> 0
D25: =IF(ISBLANK(קולות[[#This Row],[קולות]]),,(קולות[[#This Row],[קולות]]/סך_הקולות)) -> 0 | E25: =IF(קולות[[#This Row],[אחוז]]>=אחוז_החסימה,קולות[[#This Row],[קולות]],) -> 0 | F25: =IF(ISBLANK(קולות[[#This Row],[קולות]]),,INT(קולות[[#This Row],[קולות כשרים]]/מדד_למנדט)) -> 0 | G25: =IF(ISBLANK(קולות[[#This Row],[קולות]]),,MOD(קולות[[#This Row],[קולות כשרים]],מדד_למנדט)) -> 0 | H25: =IF(ISBLANK(קולות[[#This Row],[קולות]]),,BaderOfer(קולות[מפלגה],קולות[קולות כשרים],קולות[מנדטים בסיסי],(120- SUM(קולות[מנדטים בסיסי])),MATCH(קולות[[#This Row],[מפלגה]],קולות[מפלגה],0))) -> 0 | I25: =IF(ISBLANK(קולות[[#This Row],[קולות]]),,BaderOfer_Odafim(קולות[מפלגה],קולות[קולות כשרים],קולות[מנדטים בסיסי],הסכמי_עודפים[[#All],[עמודה1]],הסכמי_עודפים[[#All],[עמודה2]],(120- SUM(קולות[מנדטים בסיסי])),MATCH(קולות[[#This Row],[מפלגה]],קולות[מפלגה],0))) -> 0 | K25: =Goshim(טבלה3[ימין],קולות[מפלגה],קולות[מנדטים הסכם עודפים]) -> 55 | L25: =Goshim(טבלה3[שמאל],קולות[מפלגה],קולות[מנדטים הסכם עודפים]) -> 33

Sheet כנסת ה-23
B1: הכנסת ה-23 | ו' אדר תש"פ | 2/3/2020
I2: =IF(NOT(SUM(קולות11[מנדטים הסכם עודפים])=120),"נדרש הטלת מטבע","") -> 
B3: מפלגה | C3: קולות | D3: אחוז | E3: קולות כשרים | F3: מנדטים בסיסי | G3: קולות עודפים | H3: מנדטים באדר עופר | I3: מנדטים הסכם עודפים | K3: סך הקולות | L3: סך הקולות הכשרים
B4: יהדות התורה | C4: 1 | D4: =IF(ISBLANK(קולות11[[#This Row],[קולות]]),,(קולות11[[#This Row],[קולות]]/סך_הקולות)) -> 1 | E4: =IF(קולות11[[#This Row],[אחוז]]>=אחוז_החסימה,קולות11[[#This Row],[קולות]],) -> 1 | F4: =IF(ISBLANK(קולות11[[#This Row],[קולות]]),,INT(קולות11[[#This Row],[קולות כשרים]]/מדד_למנדט)) -> 120 | G4: =IF(ISBLANK(קולות11[[#This Row],[קולות]]),,MOD(קולות11[[#This Row],[קולות כשרים]],מדד_למנדט)) -> 1.387778781e-17 | H4: =IF(ISBLANK(קולות11[[#This Row],[קולות]]),,BaderOfer(קולות11[מפלגה],קולות11[קולות כשרים],קולות11[מנדטים בסיסי],(120- SUM(קולות11[מנדטים בסיסי])),MATCH(קולות11[[#This Row],[מפלגה]],קולות11[מפלגה],0))) -> 120 | I4: =IF(ISBLANK(קולות11[[#This Row],[קולות]]),,BaderOfer_Odafim(קולות11[מפלגה],קולות11[קולות כשרים],קולות11[מנדטים בסיסי],הסכמי_עודפים12[[#All],[עמודה1]],הסכמי_עודפים12[[#All],[עמודה2]],(120- SUM(קולות11[מנדטים בסיסי])),MATCH(קולות11[[#This Row],[מפלגה]],קולות11[מפלגה],0))) -> 120 | K4: =SUM(קולות11[קולות]) -> 1 | L4: =SUM(קולות11[קולות כשרים]) -> 1
B5: הליכוד | C5: 0 | D5: =IF(ISBLANK(קולות11[[#This Row],[קולות]]),,(קולות11[[#This Row],[קולות]]/סך_הקולות)) -> 0 | E5: =IF(קולות11[[#This Row],[אחוז]]>=אחוז_החסימה,קולות11[[#This Row],[קולות]],) -> 0 | F5: =IF(ISBLANK(קולות11[[#This Row],[קולות]]),,INT(קולות11[[#This Row],[קולות כשרים]]/מדד_למנדט)) -> 0 | G5: =IF(ISBLANK(קולות11[[#This Row],[קולות]]),,MOD(קולות11[[#This Row],[קולות כשרים]],מדד_למנדט)) -> 0 | H5: =IF(ISBLANK(קולות11[[#This Row],[קולות]]),,BaderOfer(קולות11[מפלגה],קולות11[קולות כשרים],קולות11[מנדטים בסיסי],(120- SUM(קולות11[מנדטים בסיסי])),MATCH(קולות11[[#This Row],[מפלגה]],קולות11[מפלגה],0))) -> 0 | I5: =IF(ISBLANK(קולות11[[#This Row],[קולות]]),,BaderOfer_Odafim(קולות11[מפלגה],קולות11[קולות כשרים],קולות11[מנדטים בסיסי],הסכמי_עודפים12[[#All],[עמודה1]],הסכמי_עודפים12[[#All],[עמודה2]],(120- SUM(קולות11[מנדטים בסיסי])),MATCH(קולות11[[#This Row],[מפלגה]],קולות11[מפלגה],0))) -> 0 | K5: אחוז החסימה | L5: מדד למנדט
B6: כחול לבן | C6: 0 | D6: =IF(ISBLANK(קולות11[[#This Row],[קולות]]),,(קולות11[[#This Row],[קולות]]/סך_הקולות)) -> 0 | E6: =IF(קולות11[[#This Row],[אחוז]]>=אחוז_החסימה,קולות11[[#This Row],[קולות]],) -> 0 | F6: =IF(ISBLANK(קולות11[[#This Row],[קולות]]),,INT(קולות11[[#This Row],[קולות כשרים]]/מדד_למנדט)) -> 0 | G6: =IF(ISBLANK(קולות11[[#This Row],[קולות]]),,MOD(קולות11[[#This Row],[קולות כשרים]],מדד_למנדט)) -> 0 | H6: =IF(ISBLANK(קולות11[[#This Row],[קולות]]),,BaderOfer(קולות11[מפלגה],קולות11[קולות כשרים],קולות11[מנדטים בסיסי],(120- SUM(קולות11[מנדטים בסיסי])),MATCH(קולות11[[#This Row],[מפלגה]],קולות11[מפלגה],0))) -> 0 | I6: =IF(ISBLANK(קולות11[[#This Row],[קולות]]),,BaderOfer_Odafim(קולות11[מפלגה],קולות11[קולות כשרים],קולות11[מנדטים בסיסי],הסכמי_עודפים12[[#All],[עמודה1]],הסכמי_עודפים12[[#All],[עמודה2]],(120- SUM(קולות11[מנדטים בסיסי])),MATCH(קולות11[[#This Row],[מפלגה]],קולות11[מפלגה],0))) -> 0 | K6: 0.0325 | L6: =סך_קולות_כשרים/120 -> 0.008333333333
B7: ש"ס | C7: 0 | D7: =IF(ISBLANK(קולות11[[#This Row],[קולות]]),,(קולות11[[#This Row],[קולות]]/סך_הקולות)) -> 0 | E7: =IF(קולות11[[#This Row],[אחוז]]>=אחוז_החסימה,קולות11[[#This Row],[קולות]],) -> 0 | F7: =IF(ISBLANK(קולות11[[#This Row],[קולות]]),,INT(קולות11[[#This Row],[קולות כשרים]]/מדד_למנדט)) -> 0 | G7: =IF(ISBLANK(קולות11[[#This Row],[קולות]]),,MOD(קולות11[[#This Row],[קולות כשרים]],מדד_למנדט)) -> 0 | H7: =IF(ISBLANK(קולות11[[#This Row],[קולות]]),,BaderOfer(קולות11[מפלגה],קולות11[קולות כשרים],קולות11[מנדטים בסיסי],(120- SUM(קולות11[מנדטים בסיסי])),MATCH(קולות11[[#This Row],[מפלגה]],קולות11[מפלגה],0))) -> 0 | I7: =IF(ISBLANK(קולות11[[#This Row],[קולות]]),,BaderOfer_Odafim(קולות11[מפלגה],קולות11[קולות כשרים],קולות11[מנדטים בסיסי],הסכמי_עודפים12[[#All],[עמודה1]],הסכמי_עודפים12[[#All],[עמודה2]],(120- SUM(קולות11[מנדטים בסיסי])),MATCH(קולות11[[#This Row],[מפלגה]],קולות11[מפלגה],0))) -> 0
B8: העבודה - גשר - מרצ | C8: 0 | D8: =IF(ISBLANK(קולות11[[#This Row],[קולות]]),,(קולות11[[#This Row],[קולות]]/סך_הקולות)) -> 0 | E8: =IF(קולות11[[#This Row],[אחוז]]>=אחוז_החסימה,קולות11[[#This Row],[קולות]],) -> 0 | F8: =IF(ISBLANK(קולות11[[#This Row],[קולות]]),,INT(קולות11[[#This Row],[קולות כשרים]]/מדד_למנדט)) -> 0 | G8: =IF(ISBLANK(קולות11[[#This Row],[קולות]]),,MOD(קולות11[[#This Row],[קולות כשרים]],מדד_למנדט)) -> 0 | H8: =IF(ISBLANK(קולות11[[#This Row],[קולות]]),,BaderOfer(קולות11[מפלגה],קולות11[קולות כשרים],קולות11[מנדטים בסיסי],(120- SUM(קולות11[מנדטים בסיסי])),MATCH(קולות11[[#This Row],[מפלגה]],קולות11[מפלגה],0))) -> 0 | I8: =IF(ISBLANK(קולות11[[#This Row],[קולות]]),,BaderOfer_Odafim(קולות11[מפלגה],קולות11[קולות כשרים],קולות11[מנדטים בסיסי],הסכמי_עודפים12[[#All],[עמודה1]],הסכמי_עודפים12[[#All],[עמודה2]],(120- SUM(קולות11[מנדטים בסיסי])),MATCH(קולות11[[#This Row],[מפלגה]],קולות11[מפלגה],0))) -> 0 | K8: הסכמי עודפים
B9: ישראל ביתנו | C9: 0 | D9: =IF(ISBLANK(קולות11[[#This Row],[קולות]]),,(קולות11[[#This Row],[קולות]]/סך_הקולות)) -> 0 | E9: =IF(קולות11[[#This Row],[אחוז]]>=אחוז_החסימה,קולות11[[#This Row],[קולות]],) -> 0 | F9: =IF(ISBLANK(קולות11[[#This Row],[קולות]]),,INT(קולות11[[#This Row],[קולות כשרים]]/מדד_למנדט)) -> 0 | G9: =IF(ISBLANK(קולות11[[#This Row],[קולות]]),,MOD(קולות11[[#This Row],[קולות כשרים]],מדד_למנדט)) -> 0 | H9: =IF(ISBLANK(קולות11[[#This Row],[קולות]]),,BaderOfer(קולות11[מפלגה],קולות11[קולות כשרים],קולות11[מנדטים בסיסי],(120- SUM(קולות11[מנדטים בסיסי])),MATCH(קולות11[[#This Row],[מפלגה]],קולות11[מפלגה],0))) -> 0 | I9: =IF(ISBLANK(קולות11[[#This Row],[קולות]]),,BaderOfer_Odafim(קולות11[מפלגה],קולות11[קולות כשרים],קולות11[מנדטים בסיסי],הסכמי_עודפים12[[#All],[עמודה1]],הסכמי_עודפים12[[#All],[עמודה2]],(120- SUM(קולות11[מנדטים בסיסי])),MATCH(קולות11[[#This Row],[מפלגה]],קולות11[מפלגה],0))) -> 0 | K9: יהדות התורה | L9: ש"ס
B10: מרצ | C10: 0 | D10: =IF(ISBLANK(קולות11[[#This Row],[קולות]]),,(קולות11[[#This Row],[קולות]]/סך_הקולות)) -> 0 | E10: =IF(קולות11[[#This Row],[אחוז]]>=אחוז_החסימה,קולות11[[#This Row],[קולות]],) -> 0 | F10: =IF(ISBLANK(קולות11[[#This Row],[קולות]]),,INT(קולות11[[#This Row],[קולות כשרים]]/מדד_למנדט)) -> 0 | G10: =IF(ISBLANK(קולות11[[#This Row],[קולות]]),,MOD(קולות11[[#This Row],[קולות כשרים]],מדד_למנדט)) -> 0 | H10: =IF(ISBLANK(קולות11[[#This Row],[קולות]]),,BaderOfer(קולות11[מפלגה],קולות11[קולות כשרים],קולות11[מנדטים בסיסי],(120- SUM(קולות11[מנדטים בסיסי])),MATCH(קולות11[[#This Row],[מפלגה]],קולות11[מפלגה],0))) -> 0 | I10: =IF(ISBLANK(קולות11[[#This Row],[קולות]]),,BaderOfer_Odafim(קולות11[מפלגה],קולות11[קולות כשרים],קולות11[מנדטים בסיסי],הסכמי_עודפים12[[#All],[עמודה1]],הסכמי_עודפים12[[#All],[עמודה2]],(120- SUM(קולות11[מנדטים בסיסי])),MATCH(קולות11[[#This Row],[מפלגה]],קולות11[מפלגה],0))) -> 0 | K10: כחול לבן | L10: העבודה - גשר - מרצ
B11: עוצמה יהודית | C11: 0 | D11: =IF(ISBLANK(קולות11[[#This Row],[קולות]]),,(קולות11[[#This Row],[קולות]]/סך_הקולות)) -> 0 | E11: =IF(קולות11[[#This Row],[אחוז]]>=אחוז_החסימה,קולות11[[#This Row],[קולות]],) -> 0 | F11: =IF(ISBLANK(קולות11[[#This Row],[קולות]]),,INT(קולות11[[#This Row],[קולות כשרים]]/מדד_למנדט)) -> 0 | G11: =IF(ISBLANK(קולות11[[#This Row],[קולות]]),,MOD(קולות11[[#This Row],[קולות כשרים]],מדד_למנדט)) -> 0 | H11: =IF(ISBLANK(קולות11[[#This Row],[קולות]]),,BaderOfer(קולות11[מפלגה],קולות11[קולות כשרים],קולות11[מנדטים בסיסי],(120- SUM(קולות11[מנדטים בסיסי])),MATCH(קולות11[[#This Row],[מפלגה]],קולות11[מפלגה],0))) -> 0 | I11: =IF(ISBLANK(קולות11[[#This Row],[קולות]]),,BaderOfer_Odafim(קולות11[מפלגה],קולות11[קולות כשרים],קולות11[מנדטים בסיסי],הסכמי_עודפים12[[#All],[עמודה1]],הסכמי_עודפים12[[#All],[עמודה2]],(120- SUM(קולות11[מנדטים בסיסי])),MATCH(קולות11[[#This Row],[מפלגה]],קולות11[מפלגה],0))) -> 0 | K11: הליכוד | L11: ימינה
B12: המפלגות הערביות | C12: 0 | D12: =IF(ISBLANK(קולות11[[#This Row],[קולות]]),,(קולות11[[#This Row],[קולות]]/סך_הקולות)) -> 0 | E12: =IF(קולות11[[#This Row],[אחוז]]>=אחוז_החסימה,קולות11[[#This Row],[קולות]],) -> 0 | F12: =IF(ISBLANK(קולות11[[#This Row],[קולות]]),,INT(קולות11[[#This Row],[קולות כשרים]]/מדד_למנדט)) -> 0 | G12: =IF(ISBLANK(קולות11[[#This Row],[קולות]]),,MOD(קולות11[[#This Row],[קולות כשרים]],מדד_למנדט)) -> 0 | H12: =IF(ISBLANK(קולות11[[#This Row],[קולות]]),,BaderOfer(קולות11[מפלגה],קולות11[קולות כשרים],קולות11[מנדטים בסיסי],(120- SUM(קולות11[מנדטים בסיסי])),MATCH(קולות11[[#This Row],[מפלגה]],קולות11[מפלגה],0))) -> 0 | I12: =IF(ISBLANK(קולות11[[#This Row],[קולות]]),,BaderOfer_Odafim(קולות11[מפלגה],קולות11[קולות כשרים],קולות11[מנדטים בסיסי],הסכמי_עודפים12[[#All],[עמודה1]],הסכמי_עודפים12[[#All],[עמודה2]],(120- SUM(קולות11[מנדטים בסיסי])),MATCH(קולות11[[#This Row],[מפלגה]],קולות11[מפלגה],0))) -> 0
D13: =IF(ISBLANK(קולות11[[#This Row],[קולות]]),,(קולות11[[#This Row],[קולות]]/סך_הקולות)) -> 0 | E13: =IF(קולות11[[#This Row],[אחוז]]>=אחוז_החסימה,קולות11[[#This Row],[קולות]],) -> 0 | F13: =IF(ISBLANK(קולות11[[#This Row],[קולות]]),,INT(קולות11[[#This Row],[קולות כשרים]]/מדד_למנדט)) -> 0 | G13: =IF(ISBLANK(קולות11[[#This Row],[קולות]]),,MOD(קולות11[[#This Row],[קולות כשרים]],מדד_למנדט)) -> 0 | H13: =IF(ISBLANK(קולות11[[#This Row],[קולות]]),,BaderOfer(קולות11[מפלגה],קולות11[קולות כשרים],קולות11[מנדטים בסיסי],(120- SUM(קולות11[מנדטים בסיסי])),MATCH(קולות11[[#This Row],[מפלגה]],קולות11[מפלגה],0))) -> 0 | I13: =IF(ISBLANK(קולות11[[#This Row],[קולות]]),,BaderOfer_Odafim(קולות11[מפלגה],קולות11[קולות כשרים],קולות11[מנדטים בסיסי],הסכמי_עודפים12[[#All],[עמודה1]],הסכמי_עודפים12[[#All],[עמודה2]],(120- SUM(קולות11[מנדטים בסיסי])),MATCH(קולות11[[#This Row],[מפלגה]],קולות11[מפלגה],0))) -> 0
D14: =IF(ISBLANK(קולות11[[#This Row],[קולות]]),,(קולות11[[#This Row],[קולות]]/סך_הקולות)) -> 0 | E14: =IF(קולות11[[#This Row],[אחוז]]>=אחוז_החסימה,קולות11[[#This Row],[קולות]],) -> 0 | F14: =IF(ISBLANK(קולות11[[#This Row],[קולות]]),,INT(קולות11[[#This Row],[קולות כשרים]]/מדד_למנדט)) -> 0 | G14: =IF(ISBLANK(קולות11[[#This Row],[קולות]]),,MOD(קולות11[[#This Row],[קולות כשרים]],מדד_למנדט)) -> 0 | H14: =IF(ISBLANK(קולות11[[#This Row],[קולות]]),,BaderOfer(קולות11[מפלגה],קולות11[קולות כשרים],קולות11[מנדטים בסיסי],(120- SUM(קולות11[מנדטים בסיסי])),MATCH(קולות11[[#This Row],[מפלגה]],קולות11[מפלגה],0))) -> 0 | I14: =IF(ISBLANK(קולות11[[#This Row],[קולות]]),,BaderOfer_Odafim(קולות11[מפלגה],קולות11[קולות כשרים],קולות11[מנדטים בסיסי],הסכמי_עודפים12[[#All],[עמודה1]],הסכמי_עודפים12[[#All],[עמודה2]],(120- SUM(קולות11[מנדטים בסיסי])),MATCH(קולות11[[#This Row],[מפלגה]],קולות11[מפלגה],0))) -> 0
D15: =IF(ISBLANK(קולות11[[#This Row],[קולות]]),,(קולות11[[#This Row],[קולות]]/סך_הקולות)) -> 0 | E15: =IF(קולות11[[#This Row],[אחוז]]>=אחוז_החסימה,קולות11[[#This Row],[קולות]],) -> 0 | F15: =IF(ISBLANK(קולות11[[#This Row],[קולות]]),,INT(קולות11[[#This Row],[קולות כשרים]]/מדד_למנדט)) -> 0 | G15: =IF(ISBLANK(קולות11[[#This Row],[קולות]]),,MOD(קולות11[[#This Row],[קולות כשרים]],מדד_למנדט)) -> 0 | H15: =IF(ISBLANK(קולות11[[#This Row],[קולות]]),,BaderOfer(קולות11[מפלגה],קולות11[קולות כשרים],קולות11[מנדטים בסיסי],(120- SUM(קולות11[מנדטים בסיסי])),MATCH(קולות11[[#This Row],[מפלגה]],קולות11[מפלגה],0))) -> 0 | I15: =IF(ISBLANK(קולות11[[#This Row],[קולות]]),,BaderOfer_Odafim(קולות11[מפלגה],קולות11[קולות כשרים],קולות11[מנדטים בסיסי],הסכמי_עודפים12[[#All],[עמודה1]],הסכמי_עודפים12[[#All],[עמודה2]],(120- SUM(קולות11[מנדטים בסיסי])),MATCH(קולות11[[#This Row],[מפלגה]],קולות11[מפלגה],0))) -> 0
D16: =IF(ISBLANK(קולות11[[#This Row],[קולות]]),,(קולות11[[#This Row],[קולות]]/סך_הקולות)) -> 0 | E16: =IF(קולות11[[#This Row],[אחוז]]>=אחוז_החסימה,קולות11[[#This Row],[קולות]],) -> 0 | F16: =IF(ISBLANK(קולות11[[#This Row],[קולות]]),,INT(קולות11[[#This Row],[קולות כשרים]]/מדד_למנדט)) -> 0 | G16: =IF(ISBLANK(קולות11[[#This Row],[קולות]]),,MOD(קולות11[[#This Row],[קולות כשרים]],מדד_למנדט)) -> 0 | H16: =IF(ISBLANK(קולות11[[#This Row],[קולות]]),,BaderOfer(קולות11[מפלגה],קולות11[קולות כשרים],קולות11[מנדטים בסיסי],(120- SUM(קולות11[מנדטים בסיסי])),MATCH(קולות11[[#This Row],[מפלגה]],קולות11[מפלגה],0))) -> 0 | I16: =IF(ISBLANK(קולות11[[#This Row],[קולות]]),,BaderOfer_Odafim(קולות11[מפלגה],קולות11[קולות כשרים],קולות11[מנדטים בסיסי],הסכמי_עודפים12[[#All],[עמודה1]],הסכמי_עודפים12[[#All],[עמודה2]],(120- SUM(קולות11[מנדטים בסיסי])),MATCH(קולות11[[#This Row],[מפלגה]],קולות11[מפלגה],0))) -> 0
D17: =IF(ISBLANK(קולות11[[#This Row],[קולות]]),,(קולות11[[#This Row],[קולות]]/סך_הקולות)) -> 0 | E17: =IF(קולות11[[#This Row],[אחוז]]>=אחוז_החסימה,קולות11[[#This Row],[קולות]],) -> 0 | F17: =IF(ISBLANK(קולות11[[#This Row],[קולות]]),,INT(קולות11[[#This Row],[קולות כשרים]]/מדד_למנדט)) -> 0 | G17: =IF(ISBLANK(קולות11[[#This Row],[קולות]]),,MOD(קולות11[[#This Row],[קולות כשרים]],מדד_למנדט)) -> 0 | H17: =IF(ISBLANK(קולות11[[#This Row],[קולות]]),,BaderOfer(קולות11[מפלגה],קולות11[קולות כשרים],קולות11[מנדטים בסיסי],(120- SUM(קולות11[מנדטים בסיסי])),MATCH(קולות11[[#This Row],[מפלגה]],קולות11[מפלגה],0))) -> 0 | I17: =IF(ISBLANK(קולות11[[#This Row],[קולות]]),,BaderOfer_Odafim(קולות11[מפלגה],קולות11[קולות כשרים],קולות11[מנדטים בסיסי],הסכמי_עודפים12[[#All],[עמודה1]],הסכמי_עודפים12[[#All],[עמודה2]],(120- SUM(קולות11[מנדטים בסיסי])),MATCH(קולות11[[#This Row],[מפלגה]],קולות11[מפלגה],0))) -> 0 | K17: גושים
D18: =IF(ISBLANK(קולות11[[#This Row],[קולות]]),,(קולות11[[#This Row],[קולות]]/סך_הקולות)) -> 0 | E18: =IF(קולות11[[#This Row],[אחוז]]>=אחוז_החסימה,קולות11[[#This Row],[קולות]],) -> 0 | F18: =IF(ISBLANK(קולות11[[#This Row],[קולות]]),,INT(קולות11[[#This Row],[קולות כשרים]]/מדד_למנדט)) -> 0 | G18: =IF(ISBLANK(קולות11[[#This Row],[קולות]]),,MOD(קולות11[[#This Row],[קולות כשרים]],מדד_למנדט)) -> 0 | H18: =IF(ISBLANK(קולות11[[#This Row],[קולות]]),,BaderOfer(קולות11[מפלגה],קולות11[קולות כשרים],קולות11[מנדטים בסיסי],(120- SUM(קולות11[מנדטים בסיסי])),MATCH(קולות11[[#This Row],[מפלגה]],קולות11[מפלגה],0))) -> 0 | I18: =IF(ISBLANK(קולות11[[#This Row],[קולות]]),,BaderOfer_Odafim(קולות11[מפלגה],קולות11[קולות כשרים],קולות11[מנדטים בסיסי],הסכמי_עודפים12[[#All],[עמודה1]],הסכמי_עודפים12[[#All],[עמודה2]],(120- SUM(קולות11[מנדטים בסיסי])),MATCH(קולות11[[#This Row],[מפלגה]],קולות11[מפלגה],0))) -> 0 | K18: ימין | L18: שמאל
D19: =IF(ISBLANK(קולות11[[#This Row],[קולות]]),,(קולות11[[#This Row],[קולות]]/סך_הקולות)) -> 0 | E19: =IF(קולות11[[#This Row],[אחוז]]>=אחוז_החסימה,קולות11[[#This Row],[קולות]],) -> 0 | F19: =IF(ISBLANK(קולות11[[#This Row],[קולות]]),,INT(קולות11[[#This Row],[קולות כשרים]]/מדד_למנדט)) -> 0 | G19: =IF(ISBLANK(קולות11[[#This Row],[קולות]]),,MOD(קולות11[[#This Row],[קולות כשרים]],מדד_למנדט)) -> 0 | H19: =IF(ISBLANK(קולות11[[#This Row],[קולות]]),,BaderOfer(קולות11[מפלגה],קולות11[קולות כשרים],קולות11[מנדטים בסיסי],(120- SUM(קולות11[מנדטים בסיסי])),MATCH(קולות11[[#This Row],[מפלגה]],קולות11[מפלגה],0))) -> 0 | I19: =IF(ISBLANK(קולות11[[#This Row],[קולות]]),,BaderOfer_Odafim(קולות11[מפלגה],קולות11[קולות כשרים],קולות11[מנדטים בסיסי],הסכמי_עודפים12[[#All],[עמודה1]],הסכמי_עודפים12[[#All],[עמודה2]],(120- SUM(קולות11[מנדטים בסיסי])),MATCH(קולות11[[#This Row],[מפלגה]],קולות11[מפלגה],0))) -> 0 | K19: הליכוד | L19: כחול לבן
D20: =IF(ISBLANK(קולות11[[#This Row],[קולות]]),,(קולות11[[#This Row],[קולות]]/סך_הקולות)) -> 0 | E20: =IF(קולות11[[#This Row],[אחוז]]>=אחוז_החסימה,קולות11[[#This Row],[קולות]],) -> 0 | F20: =IF(ISBLANK(קולות11[[#This Row],[קולות]]),,INT(קולות11[[#This Row],[קולות כשרים]]/מדד_למנדט)) -> 0 | G20: =IF(ISBLANK(קולות11[[#This Row],[קולות]]),,MOD(קולות11[[#This Row],[קולות כשרים]],מדד_למנדט)) -> 0 | H20: =IF(ISBLANK(קולות11[[#This Row],[קולות]]),,BaderOfer(קולות11[מפלגה],קולות11[קולות כשרים],קולות11[מנדטים בסיסי],(120- SUM(קולות11[מנדטים בסיסי])),MATCH(קולות11[[#This Row],[מפלגה]],קולות11[מפלגה],0))) -> 0 | I20: =IF(ISBLANK(קולות11[[#This Row],[קולות]]),,BaderOfer_Odafim(קולות11[מפלגה],קולות11[קולות כשרים],קולות11[מנדטים בסיסי],הסכמי_עודפים12[[#All],[עמודה1]],הסכמי_עודפים12[[#All],[עמודה2]],(120- SUM(קולות11[מנדטים בסיסי])),MATCH(קולות11[[#This Row],[מפלגה]],קולות11[מפלגה],0))) -> 0 | K20: ימינה | L20: העבודה - גשר - מרצ
D21: =IF(ISBLANK(קולות11[[#This Row],[קולות]]),,(קולות11[[#This Row],[קולות]]/סך_הקולות)) -> 0 | E21: =IF(קולות11[[#This Row],[אחוז]]>=אחוז_החסימה,קולות11[[#This Row],[קולות]],) -> 0 | F21: =IF(ISBLANK(קולות11[[#This Row],[קולות]]),,INT(קולות11[[#This Row],[קולות כשרים]]/מדד_למנדט)) -> 0 | G21: =IF(ISBLANK(קולות11[[#This Row],[קולות]]),,MOD(קולות11[[#This Row],[קולות כשרים]],מדד_למנדט)) -> 0 | H21: =IF(ISBLANK(קולות11[[#This Row],[קולות]]),,BaderOfer(קולות11[מפלגה],קולות11[קולות כשרים],קולות11[מנדטים בסיסי],(120- SUM(קולות11[מנדטים בסיסי])),MATCH(קולות11[[#This Row],[מפלגה]],קולות11[מפלגה],0))) -> 0 | I21: =IF(ISBLANK(קולות11[[#This Row],[קולות]]),,BaderOfer_Odafim(קולות11[מפלגה],קולות11[קולות כשרים],קולות11[מנדטים בסיסי],הסכמי_עודפים12[[#All],[עמודה1]],הסכמי_עודפים12[[#All],[עמודה2]],(120- SUM(קולות11[מנדטים בסיסי])),MATCH(קולות11[[#This Row],[מפלגה]],קולות11[מפלגה],0))) -> 0 | K21: ש"ס
D22: =IF(ISBLANK(קולות11[[#This Row],[קולות]]),,(קולות11[[#This Row],[קולות]]/סך_הקולות)) -> 0 | E22: =IF(קולות11[[#This Row],[אחוז]]>=אחוז_החסימה,קולות11[[#This Row],[קולות]],) -> 0 | F22: =IF(ISBLANK(קולות11[[#This Row],[קולות]]),,INT(קולות11[[#This Row],[קולות כשרים]]/מדד_למנדט)) -> 0 | G22: =IF(ISBLANK(קולות11[[#This Row],[קולות]]),,MOD(קולות11[[#This Row],[קולות כשרים]],מדד_למנדט)) -> 0 | H22: =IF(ISBLANK(קולות11[[#This Row],[קולות]]),,BaderOfer(קולות11[מפלגה],קולות11[קולות כשרים],קולות11[מנדטים בסיסי],(120- SUM(קולות11[מנדטים בסיסי])),MATCH(קולות11[[#This Row],[מפלגה]],קולות11[מפלגה],0))) -> 0 | I22: =IF(ISBLANK(קולות11[[#This Row],[קולות]]),,BaderOfer_Odafim(קולות11[מפלגה],קולות11[קולות כשרים],קולות11[מנדטים בסיסי],הסכמי_עודפים12[[#All],[עמודה1]],הסכמי_עודפים12[[#All],[עמודה2]],(120- SUM(קולות11[מנדטים בסיסי])),MATCH(קולות11[[#This Row],[מפלגה]],קולות11[מפלגה],0))) -> 0 | K22: יהדות התורה
D23: =IF(ISBLANK(קולות11[[#This Row],[קולות]]),,(קולות11[[#This Row],[קולות]]/סך_הקולות)) -> 0 | E23: =IF(קולות11[[#This Row],[אחוז]]>=אחוז_החסימה,קולות11[[#This Row],[קולות]],) -> 0 | F23: =IF(ISBLANK(קולות11[[#This Row],[קולות]]),,INT(קולות11[[#This Row],[קולות כשרים]]/מדד_למנדט)) -> 0 | G23: =IF(ISBLANK(קולות11[[#This Row],[קולות]]),,MOD(קולות11[[#This Row],[קולות כשרים]],מדד_למנדט)) -> 0 | H23: =IF(ISBLANK(קולות11[[#This Row],[קולות]]),,BaderOfer(קולות11[מפלגה],קולות11[קולות כשרים],קולות11[מנדטים בסיסי],(120- SUM(קולות11[מנדטים בסיסי])),MATCH(קולות11[[#This Row],[מפלגה]],קולות11[מפלגה],0))) -> 0 | I23: =IF(ISBLANK(קולות11[[#This Row],[קולות]]),,BaderOfer_Odafim(קולות11[מפלגה],קולות11[קולות כשרים],קולות11[מנדטים בסיסי],הסכמי_עודפים12[[#All],[עמודה1]],הסכמי_עודפים12[[#All],[עמודה2]],(120- SUM(קולות11[מנדטים בסיסי])),MATCH(קולות11[[#This Row],[מפלגה]],קולות11[מפלגה],0))) -> 0
D24: =IF(ISBLANK(קולות11[[#This Row],[קולות]]),,(קולות11[[#This Row],[קולות]]/סך_הקולות)) -> 0 | E24: =IF(קולות11[[#This Row],[אחוז]]>=אחוז_החסימה,קולות11[[#This Row],[קולות]],) -> 0 | F24: =IF(ISBLANK(קולות11[[#This Row],[קולות]]),,INT(קולות11[[#This Row],[קולות כשרים]]/מדד_למנדט)) -> 0 | G24: =IF(ISBLANK(קולות11[[#This Row],[קולות]]),,MOD(קולות11[[#This Row],[קולות כשרים]],מדד_למנדט)) -> 0 | H24: =IF(ISBLANK(קולות11[[#This Row],[קולות]]),,BaderOfer(קולות11[מפלגה],קולות11[קולות כשרים],קולות11[מנדטים בסיסי],(120- SUM(קולות11[מנדטים בסיסי])),MATCH(קולות11[[#This Row],[מפלגה]],קולות11[מפלגה],0))) -> 0 | I24: =IF(ISBLANK(קולות11[[#This Row],[קולות]]),,BaderOfer_Odafim(קולות11[מפלגה],קולות11[קולות כשרים],קולות11[מנדטים בסיסי],הסכמי_עודפים12[[#All],[עמודה1]],הסכמי_עודפים12[[#All],[עמודה2]],(120- SUM(קולות11[מנדטים בסיסי])),MATCH(קולות11[[#This Row],[מפלגה]],קולות11[מפלגה],0))) -> 0
D25: =IF(ISBLANK(קולות11[[#This Row],[קולות]]),,(קולות11[[#This Row],[קולות]]/סך_הקולות)) -> 0 | E25: =IF(קולות11[[#This Row],[אחוז]]>=אחוז_החסימה,קולות11[[#This Row],[קולות]],) -> 0 | F25: =IF(ISBLANK(קולות11[[#This Row],[קולות]]),,INT(קולות11[[#This Row],[קולות כשרים]]/מדד_למנדט)) -> 0 | G25: =IF(ISBLANK(קולות11[[#This Row],[קולות]]),,MOD(קולות11[[#This Row],[קולות כשרים]],מדד_למנדט)) -> 0 | H25: =IF(ISBLANK(קולות11[[#This Row],[קולות]]),,BaderOfer(קולות11[מפלגה],קולות11[קולות כשרים],קולות11[מנדטים בסיסי],(120- SUM(קולות11[מנדטים בסיסי])),MATCH(קולות11[[#This Row],[מפלגה]],קולות11[מפלגה],0))) -> 0 | I25: =IF(ISBLANK(קולות11[[#This Row],[קולות]]),,BaderOfer_Odafim(קולות11[מפלגה],קולות11[קולות כשרים],קולות11[מנדטים בסיסי],הסכמי_עודפים12[[#All],[עמודה1]],הסכמי_עודפים12[[#All],[עמודה2]],(120- SUM(קולות11[מנדטים בסיסי])),MATCH(קולות11[[#This Row],[מפלגה]],קולות11[מפלגה],0))) -> 0 | K25: =Goshim(טבלה313[ימין],קולות11[מפלגה],קולות11[מנדטים הסכם עודפים]) -> 120 | L25: =Goshim(טבלה313[שמאל],קולות11[מפלגה],קולות11[מנדטים הסכם עודפים]) -> 0
